Department,Entity,Date of Payment,Expense Type,Expense Area,Supplier,Transaction Number,Amount
DECC,Department of Energy and Climate Change,01/07/2016,PURCHASE OF GOODS/SERVICES - TRAINING & DEVELOPMENT,Energy Transformation,SERCO LTD,PN28062016C,6817
DECC,Department of Energy and Climate Change,01/07/2016,SUBSIDIES TO PRIVATE SECTOR - COMPANIES,Energy Security,GROUNDWORK SOUTH TRUST,DEFRA_GO_LIVE_DEC_AP_INV,3000
DECC,Department of Energy and Climate Change,01/07/2016,SUBSIDIES TO PRIVATE SECTOR - COMPANIES,Energy Security,AIRDRIE CITIZENS ADVICE BUREAU,DEFRA_GO_LIVE_DEC_AP_INV,1000
DECC,Department of Energy and Climate Change,01/07/2016,PURCHASE OF GOODS/SERVICES - OTHER PROF SERV - OUTSOURCED PROGRAMME MANAGEMENT SERVICES,Energy Security,HAYS SPECIALIST RECRUITMENT LTD,PN28062016C,5222.14
DECC,Department of Energy and Climate Change,01/07/2016,SHORT-TERM CONTRACT & AGENCY STAFF - FULL COST,Energy Security,HAYS SPECIALIST RECRUITMENT LTD,PN28062016C,2925
DECC,Department of Energy and Climate Change,01/07/2016,SHORT-TERM CONTRACT & AGENCY STAFF - FULL COST,Energy Security,HAYS SPECIALIST RECRUITMENT LTD,PN28062016C,2390.55
DECC,Department of Energy and Climate Change,01/07/2016,Purchase Of Goods/Services - Other Professional Services,Energy Security,ACHILLES INFORMATION LTD T/A FIRST POINT ASSESSMENT,PN28062016C,810
DECC,Department of Energy and Climate Change,01/07/2016,SUBSIDIES TO PRIVATE SECTOR - COMPANIES,Energy Security,ENERGISE SUSSEX COAST LTD,PN28062016D,5000
DECC,Department of Energy and Climate Change,01/07/2016,SUBSIDIES TO PRIVATE SECTOR - COMPANIES,Energy Security,SOUTH EAST LONDON COMMUNITY ENERGY LTD.,SC28062016,1000
DECC,Department of Energy and Climate Change,01/07/2016,PURCHASE OF GOODS/SERVICES - OTHER FACILITIES COSTS,Energy Security,THOMAS TELFORD LTD T/A ONE GREAT GEORGE STREET,SC28062016,869.5
DECC,Department of Energy and Climate Change,01/07/2016,SHORT-TERM CONTRACT & AGENCY STAFF - FULL COST,Energy Security,HAYS SPECIALIST RECRUITMENT LTD,PN28062016C,3193.02
DECC,Department of Energy and Climate Change,01/07/2016,PURCHASE OF GOODS/SERVICES - OTHER PROF SERV - OUTSOURCED PROGRAMME MANAGEMENT SERVICES,Energy Transformation,CARILLION ENERGY SERVICES LTD,PN28062016D,29150.59
DECC,Department of Energy and Climate Change,01/07/2016,SUBSIDIES TO PRIVATE SECTOR - COMPANIES,Energy Security,RIVERSIDE ADVICE LTD,SC28062016,1000
DECC,Department of Energy and Climate Change,01/07/2016,PURCHASE OF GOODS/SERVICES - OTHER PROF SERV - SHARED LEGAL SERVICES,Energy Transformation,BLACKSTONE CHAMBERS LIMITED,PH220616G,1840
DECC,Department of Energy and Climate Change,01/07/2016,PURCHASE OF GOODS/SERVICES - HOTELS & ACCOMMODATION,Strategy,FOREIGN & COMMONWEALTH OFFICE,LD30062016C,2985.96
DECC,Department of Energy and Climate Change,01/07/2016,Purchase Of Goods/Services - Other Professional Services,Energy Transformation,RIVERS CONSULTANCY SERVICES LTD,PN28062016C,4736.7
DECC,Department of Energy and Climate Change,01/07/2016,SHORT-TERM CONTRACT & AGENCY STAFF - FULL COST,Energy Security,MICHAEL PAGE INTERNATIONAL RECRUITMENT LTD,PN28062016D,8749.1
DECC,Department of Energy and Climate Change,01/07/2016,PURCHASE OF GOODS/SERVICES - OTHER PROF SERV - SHARED LEGAL SERVICES,Energy Transformation,MILLS & REEVE,PN28062016D,1284
DECC,Department of Energy and Climate Change,01/07/2016,SUBSIDIES TO PRIVATE SECTOR - COMPANIES,Energy Security,ZINTHIYA GANESHPANCHAN TRUST,SC28062016,1000
DECC,Department of Energy and Climate Change,01/07/2016,SHORT-TERM CONTRACT & AGENCY STAFF - FULL COST,Energy Security,HAYS SPECIALIST RECRUITMENT LTD,PN28062016C,2925
DECC,Department of Energy and Climate Change,01/07/2016,Purchase Of Goods/Services - Other Professional Services,Energy Security,HAYS SPECIALIST RECRUITMENT LTD,PN28062016C,1279.29
DECC,Department of Energy and Climate Change,01/07/2016,PURCHASE OF GOODS/SERVICES� - RESEARCH & DEVELOPMENT - OTHER OUTSOURCED,Finance & Corporate Services,CENTRE FOR SUSTAINABLE ENERGY,PN28062016C,4659.37
DECC,Department of Energy and Climate Change,01/07/2016,PURCHASE OF GOODS/SERVICES - OTHER PROF SERV - OUTSOURCED PROGRAMME MANAGEMENT SERVICES,Finance & Corporate Services,SLAUGHTER & MAY,PN28062016D,39933.92
DECC,Department of Energy and Climate Change,01/07/2016,PURCHASE OF GOODS/SERVICES - OTHER PROF SERV - SHARED LEGAL SERVICES,Energy Transformation,SLAUGHTER & MAY,PN28062016D,7183.49
DECC,Department of Energy and Climate Change,01/07/2016,PURCHASE OF GOODS/SERVICES� - RESEARCH & DEVELOPMENT - OTHER OUTSOURCED,Finance & Corporate Services,ENERGY ASPECTS LTD,PN28062016D,3500
DECC,Department of Energy and Climate Change,01/07/2016,SUBSIDIES TO PRIVATE SECTOR - COMPANIES,Energy Security,CENTRAL & EAST NORTHANTS C A B,SC28062016,1000
DECC,Department of Energy and Climate Change,01/07/2016,SUBSIDIES TO PRIVATE SECTOR - COMPANIES,Energy Security,ACIS GROUP LTD,DEFRA_GO_LIVE_DEC_AP_INV,1000
DECC,Department of Energy and Climate Change,01/07/2016,PURCHASE OF GOODS/SERVICES - OTHER PROF SERV - SHARED LEGAL SERVICES,Energy Transformation,BLACKSTONE CHAMBERS LIMITED,PH220616G,920
DECC,Department of Energy and Climate Change,01/07/2016,Purchase Of Goods/Services - Other Professional Services,Energy Security,ACHILLES INFORMATION LTD T/A FIRST POINT ASSESSMENT,PN28062016C,810
DECC,Department of Energy and Climate Change,01/07/2016,SUBSIDIES TO PRIVATE SECTOR - COMPANIES,Energy Security,CUMBRIA ACTION FOR SUSTAINABILITY,PN28062016D,1000
DECC,Department of Energy and Climate Change,01/07/2016,SUBSIDIES TO PRIVATE SECTOR - COMPANIES,Energy Security,SOUTH EAST LONDON COMMUNITY ENERGY LTD.,SC28062016,4000
DECC,Department of Energy and Climate Change,01/07/2016,SHORT-TERM CONTRACT & AGENCY STAFF - FULL COST,Energy Security,HAYS SPECIALIST RECRUITMENT LTD,PN28062016C,2450
DECC,Department of Energy and Climate Change,01/07/2016,PURCHASE OF GOODS/SERVICES - OTHER - RESEARCH AND DEVELOPMENT,Finance & Corporate Services,CENTRE FOR SUSTAINABLE ENERGY,PN28062016C,1450.86
DECC,Department of Energy and Climate Change,01/07/2016,Purchase Of Goods/Services - Other Professional Services,Energy Security,ACHILLES INFORMATION LTD T/A FIRST POINT ASSESSMENT,PN28062016C,810
DECC,Department of Energy and Climate Change,01/07/2016,PURCHASE OF GOODS/SERVICES - OTHER PROF SERV - SHARED LEGAL SERVICES,Energy Transformation,MILLS & REEVE,PN28062016D,2290.75
DECC,Department of Energy and Climate Change,01/07/2016,SHORT-TERM CONTRACT & AGENCY STAFF - FULL COST,Energy Security,ALLEN LANE LTD,PN28062016D,2075.5
DECC,Department of Energy and Climate Change,01/07/2016,SHORT-TERM CONTRACT & AGENCY STAFF - FULL COST,Energy Security,HAYS SPECIALIST RECRUITMENT LTD,PN28062016D,1907.5
DECC,Department of Energy and Climate Change,04/07/2016,PURCHASE OF GOODS/SERVICES - OTHER PROF SERV - OUTSOURCED PROGRAMME MANAGEMENT SERVICES,Energy Security,GENESIS OIL & GAS CONSULTANTS LTD,JOP02062016C,12673.62
DECC,Department of Energy and Climate Change,04/07/2016,PURCHASE OF GOODS/SERVICES� - RESEARCH & DEVELOPMENT - OTHER OUTSOURCED,Finance & Corporate Services,CENTRE FOR SUSTAINABLE ENERGY,AG29062016C,8000
DECC,Department of Energy and Climate Change,04/07/2016,PURCHASE OF GOODS/SERVICES -OTHER PROFESSIONAL SERVICES - LEGAL,Energy Transformation,GOWLING WLG (UK) LLP,DEFRA_GO_LIVE_DEC_AP_INV,12142.7
DECC,Department of Energy and Climate Change,04/07/2016,PURCHASE OF GOODS/SERVICES - OTHER PROF SERV - OUTSOURCED PROGRAMME MANAGEMENT SERVICES,Energy Security,GENESIS OIL & GAS CONSULTANTS LTD,JOP02062016C,1233.84
DECC,Department of Energy and Climate Change,04/07/2016,CAPITAL GRANTS TO PRIVATE SECTOR - COMPANIES,Energy Transformation,C R E S S ENERGY STORAGE SYSTEMS LTD,LD29062016,36119.73
DECC,Department of Energy and Climate Change,04/07/2016,SHORT-TERM CONTRACT & AGENCY STAFF - FULL COST,Energy Transformation,ADECCO UK LTD,PN29062016,1232.79
DECC,Department of Energy and Climate Change,04/07/2016,SHORT-TERM CONTRACT & AGENCY STAFF - FULL COST,Energy Transformation,ADECCO UK LTD,PN29062016,697.41
DECC,Department of Energy and Climate Change,04/07/2016,SHORT-TERM CONTRACT & AGENCY STAFF - FULL COST,Energy Transformation,ADECCO UK LTD,PN29062016C,569.72
DECC,Department of Energy and Climate Change,04/07/2016,GRANT-IN-AID TO ARMS LENGTH BODIES,Energy Security,NUCLEAR DECOMMISIONING AUTHORITY,SOP6CG04JUL2016,284000000
DECC,Department of Energy and Climate Change,04/07/2016,PURCHASE OF GOODS/SERVICES - OTHER FACILITIES COSTS - SHARED SECURITY SERV,Finance & Corporate Services,MINISTRY OF JUSTICE,LD01072016,8706
DECC,Department of Energy and Climate Change,04/07/2016,PURCHASE OF GOODS/SERVICES� - RESEARCH & DEVELOPMENT - OTHER OUTSOURCED,Finance & Corporate Services,CENTRE FOR SUSTAINABLE ENERGY,AG29062016C,1806.27
DECC,Department of Energy and Climate Change,04/07/2016,PURCHASE OF GOODS/SERVICES -OTHER PROF SERV - TECHNICAL,Energy Security,AMEC FOSTER WHEELER ENVIR & INFRASTRUCTURE UK LTD,AG29062016C,41433.3
DECC,Department of Energy and Climate Change,04/07/2016,SHORT-TERM CONTRACT & AGENCY STAFF - FULL COST,Energy Transformation,ADECCO UK LTD,PN29062016C,835.45
DECC,Department of Energy and Climate Change,04/07/2016,CAPITAL GRANTS TO PRIVATE SECTOR - COMPANIES,Energy Security,ELEXON LTD,LD29062016,115412.51
DECC,Department of Energy and Climate Change,04/07/2016,SHORT-TERM CONTRACT & AGENCY STAFF - FULL COST,Finance & Corporate Services,ADECCO UK LTD,PN29062016,701.84
DECC,Department of Energy and Climate Change,04/07/2016,SHORT-TERM CONTRACT & AGENCY STAFF - FULL COST,Finance & Corporate Services,ADECCO UK LTD,PN29062016,711.72
DECC,Department of Energy and Climate Change,04/07/2016,SHORT-TERM CONTRACT & AGENCY STAFF - FULL COST,Energy Transformation,HAYS SPECIALIST RECRUITMENT LTD,AG29062016C,598.29
DECC,Department of Energy and Climate Change,04/07/2016,SHORT-TERM CONTRACT & AGENCY STAFF - FULL COST,Finance & Corporate Services,ADECCO UK LTD,PN29062016C,563.45
DECC,Department of Energy and Climate Change,04/07/2016,PURCHASE OF GOODS/SERVICES - OTHER - RESEARCH AND DEVELOPMENT,Energy Transformation,RICARDO-A E A LTD,SOP6CG04JUL2016,20626
DECC,Department of Energy and Climate Change,04/07/2016,PURCHASE OF GOODS/SERVICES - OTHER - RESEARCH AND DEVELOPMENT,Energy Transformation,RICARDO-A E A LTD,LT04062016,5705
DECC,Department of Energy and Climate Change,04/07/2016,SHORT-TERM CONTRACT & AGENCY STAFF - FULL COST,Finance & Corporate Services,ADECCO UK LTD,PN29062016C,593.1
DECC,Department of Energy and Climate Change,04/07/2016,SUBSIDIES TO PRIVATE SECTOR - COMPANIES,Energy Transformation,UNIVERSITY COLLEGE LONDON,AG29062016C,20000
DECC,Department of Energy and Climate Change,04/07/2016,PURCHASE OF GOODS/SERVICES -OTHER PROF SERV - TECHNICAL,Energy Transformation,REDPOINT ENERGY LTD,PN22062016D,22000
DECC,Department of Energy and Climate Change,04/07/2016,CAPITAL GRANTS TO PRIVATE SECTOR - COMPANIES,Energy Transformation,VIRIDOR WASTE MANAGEMENT LTD,PN21062016A,56019.03
DECC,Department of Energy and Climate Change,04/07/2016,PURCHASE OF GOODS/SERVICES - OTHER - RESEARCH AND DEVELOPMENT,Energy Transformation,RICARDO-A E A LTD,SOP6CG04JUL2016,20626
DECC,Department of Energy and Climate Change,04/07/2016,PURCHASE OF GOODS/SERVICES - OTHER - RESEARCH AND DEVELOPMENT,Energy Transformation,SPACE CONNEXIONS LTD,PN14062016,114085
DECC,Department of Energy and Climate Change,04/07/2016,SHORT-TERM CONTRACT & AGENCY STAFF - FULL COST,Energy Transformation,ADECCO UK LTD,PN29062016C,538.65
DECC,Department of Energy and Climate Change,04/07/2016,SHORT-TERM CONTRACT & AGENCY STAFF - FULL COST,Finance & Corporate Services,ADECCO UK LTD,PN29062016C,691.92
DECC,Department of Energy and Climate Change,04/07/2016,CAPITAL GRANTS TO PRIVATE SECTOR - COMPANIES,Energy Transformation,RECYCLING TECHNOLOGIES LTD,AG29062016C,99836.47
DECC,Department of Energy and Climate Change,04/07/2016,SHORT-TERM CONTRACT & AGENCY STAFF - FULL COST,Energy Transformation,ADECCO UK LTD,PN29062016,674.66
DECC,Department of Energy and Climate Change,04/07/2016,SHORT-TERM CONTRACT & AGENCY STAFF - FULL COST,Energy Transformation,ADECCO UK LTD,PN29062016C,714.42
DECC,Department of Energy and Climate Change,04/07/2016,SHORT-TERM CONTRACT & AGENCY STAFF - FULL COST,Energy Transformation,ADECCO UK LTD,PN29062016C,750.74
DECC,Department of Energy and Climate Change,04/07/2016,PURCHASE OF GOODS/SERVICES - CONSULTANCY - TECHNICAL,Energy Transformation,ARBORVITAE ENVIRONMENTAL SERVICES LTD,SOP5CG04JUL2016,769.33
DECC,Department of Energy and Climate Change,05/07/2016,PURCHASE OF GOODS/SERVICES - OTHER - RESEARCH AND DEVELOPMENT,Energy Security,PARSONS BRINCKERHOFF LTD,PN23062016C,1000
DECC,Department of Energy and Climate Change,05/07/2016,CAPITAL GRANTS TO PRIVATE SECTOR - COMPANIES,Energy Transformation,UNIVERSITY OF SHEFFIELD,LD30062016C,100464.51
DECC,Department of Energy and Climate Change,05/07/2016,PURCHASE OF GOODS/SERVICES - OFFICE RELATED - PRINTING,Energy Security,COLLIERS INTERNATIONAL BUILDING CONSULTANCY UK LLP,PH300616C,565.7
DECC,Department of Energy and Climate Change,05/07/2016,PURCHASE OF GOODS/SERVICES - OTHER PROF SERV - OUTSOURCED PROGRAMME MANAGEMENT SERVICES,Energy Transformation,CARBON LIMITING TECHNOLOGIES,PH300616C,11866.61
DECC,Department of Energy and Climate Change,05/07/2016,PURCHASE OF GOODS/SERVICES -OTHER PROF SERV - TECHNICAL,Energy Transformation,YELLOW WOOD ENERGY CONSULTING LTD,PN14062016,17850
DECC,Department of Energy and Climate Change,05/07/2016,PURCHASE OF GOODS/SERVICES - ACCOMMODATION & BLDNG MANAGEMENT,Energy Security,COLLIERS INTERNATIONAL BUILDING CONSULTANCY UK LLP,SHDECC09062016,14068.38
DECC,Department of Energy and Climate Change,05/07/2016,CAPITAL GRANTS TO PRIVATE SECTOR - COMPANIES,Energy Transformation,NATIONAL NUCLEAR LABORATORY LTD,PH300616D,908272.11
DECC,Department of Energy and Climate Change,05/07/2016,CAPITAL GRANTS TO PRIVATE SECTOR - COMPANIES,Energy Transformation,OXFORD PHOTOVOLTAICS LTD,PH300616C,24880.16
DECC,Department of Energy and Climate Change,05/07/2016,PURCHASE OF GOODS/SERVICES -OTHER PROF SERV - TECHNICAL,Energy Transformation,YELLOW WOOD ENERGY CONSULTING LTD,PN14062016,17062.5
DECC,Department of Energy and Climate Change,05/07/2016,CAPITAL GRANTS TO PRIVATE SECTOR - COMPANIES,Energy Transformation,ANTACO UK LTD,LD30062016C,79874.31
DECC,Department of Energy and Climate Change,05/07/2016,GRANT-IN-AID TO ARMS LENGTH BODIES,Energy Security,THE COAL AUTHORITY,SC01072016A,2500000
DECC,Department of Energy and Climate Change,05/07/2016,PURCHASE OF GOODS/SERVICES - OTHER PROF SERV - OUTSOURCED PROGRAMME MANAGEMENT SERVICES,Energy Transformation,CARBON LIMITING TECHNOLOGIES,LD30062016C,53759.12
DECC,Department of Energy and Climate Change,05/07/2016,PURCHASE OF GOODS/SERVICES -OTHER PROF SERV - TECHNICAL,Energy Transformation,YELLOW WOOD ENERGY CONSULTING LTD,AG31052016D,16800
DECC,Department of Energy and Climate Change,05/07/2016,PURCHASE OF GOODS/SERVICES -OTHER PROF SERV - TECHNICAL,Energy Transformation,YELLOW WOOD ENERGY CONSULTING LTD,PN14062016,16012.5
DECC,Department of Energy and Climate Change,05/07/2016,PURCHASE OF GOODS/SERVICES - TRAINING & DEVELOPMENT,Finance & Corporate Services,CZECH-IN S.R.O.,SOP5CG05JUL2016,555.25
DECC,Department of Energy and Climate Change,05/07/2016,PURCHASE OF GOODS/SERVICES - TRAINING & DEVELOPMENT,Finance & Corporate Services,CAPITA BUSINESS SERVICES LTD,PH300616D,7263
DECC,Department of Energy and Climate Change,05/07/2016,PURCHASE OF GOODS/SERVICES - OTHER PROF SERV - OUTSOURCED PROGRAMME MANAGEMENT SERVICES,Energy Transformation,EUNOMIA RESEARCH & CONSULTING LTD,PN27062016I,13460.18
DECC,Department of Energy and Climate Change,05/07/2016,PURCHASE OF GOODS/SERVICES - OTHER PROF SERV - OUTSOURCED PROGRAMME MANAGEMENT SERVICES,Energy Transformation,CARBON LIMITING TECHNOLOGIES,PH300616C,6890
DECC,Department of Energy and Climate Change,05/07/2016,SHORT-TERM CONTRACT & AGENCY STAFF - FULL COST,Energy Security,HAYS SPECIALIST RECRUITMENT LTD,PH300616D,2925
DECC,Department of Energy and Climate Change,05/07/2016,PURCHASE OF GOODS/SERVICES - OTHER PROF SERV - OUTSOURCED PROGRAMME MANAGEMENT SERVICES,Energy Transformation,CARBON LIMITING TECHNOLOGIES,PH300616D,22261.47
DECC,Department of Energy and Climate Change,05/07/2016,PURCHASE OF GOODS/SERVICES -OTHER PROF SERV - TECHNICAL,Energy Transformation,YELLOW WOOD ENERGY CONSULTING LTD,AG31052016D,17850
DECC,Department of Energy and Climate Change,05/07/2016,PURCHASE OF GOODS/SERVICES - OTHER PROF SERV - OUTSOURCED PROGRAMME MANAGEMENT SERVICES,Energy Transformation,CARBON LIMITING TECHNOLOGIES,PH300616D,33527.66
DECC,Department of Energy and Climate Change,05/07/2016,CAPITAL GRANTS TO PRIVATE SECTOR - COMPANIES,Energy Transformation,WOLSELEY UK LTD,LD30062016C,40140
DECC,Department of Energy and Climate Change,05/07/2016,PURCHASE OF GOODS/SERVICES - OTHER PROF SERV - OUTSOURCED PROGRAMME MANAGEMENT SERVICES,Energy Transformation,CARBON LIMITING TECHNOLOGIES,PH300616C,11740
DECC,Department of Energy and Climate Change,05/07/2016,PURCHASE OF GOODS/SERVICES -OTHER PROF SERV - TECHNICAL,Energy Transformation,YELLOW WOOD ENERGY CONSULTING LTD,AG31052016D,17850
DECC,Department of Energy and Climate Change,05/07/2016,PURCHASE OF GOODS/SERVICES - ACCOMMODATION & BLDNG MANAGEMENT,Energy Security,COLLIERS INTERNATIONAL BUILDING CONSULTANCY UK LLP,SHDECC09062016,24221.5
DECC,Department of Energy and Climate Change,05/07/2016,SHORT-TERM CONTRACT & AGENCY STAFF - FULL COST,Energy Security,HAYS SPECIALIST RECRUITMENT LTD,JK02062016G,1535.25
DECC,Department of Energy and Climate Change,05/07/2016,SHORT-TERM CONTRACT & AGENCY STAFF - FULL COST,Energy Security,HAYS SPECIALIST RECRUITMENT LTD,PH300616D,2925
DECC,Department of Energy and Climate Change,05/07/2016,SHORT-TERM CONTRACT & AGENCY STAFF - FULL COST,Energy Security,HAYS SPECIALIST RECRUITMENT LTD,SC01062016C,1074.68
DECC,Department of Energy and Climate Change,06/07/2016,SUBSIDIES TO PRIVATE SECTOR - COMPANIES,Energy Security,EXETER CITIZENS ADVICE BUREAU,LD01072016,1000
DECC,Department of Energy and Climate Change,06/07/2016,Purchase Of Goods/Services - Other Professional Services,Energy Security,HAYS SPECIALIST RECRUITMENT LTD,DEFRA_GO_LIVE_DEC_AP_INV,14921.08
DECC,Department of Energy and Climate Change,06/07/2016,PURCHASE OF GOODS/SERVICES - OTHER - RESEARCH AND DEVELOPMENT,Energy Transformation,RICARDO-A E A LTD,SOP6CG06JUL2016,57478.77
DECC,Department of Energy and Climate Change,06/07/2016,PURCHASE OF GOODS/SERVICES - OTHER PROF SERV - SHARED LEGAL SERVICES,Finance & Corporate Services,LANDMARK CHAMBERS,PN27062016I,750
DECC,Department of Energy and Climate Change,06/07/2016,PURCHASE OF GOODS/SERVICES - OTHER FACILITIES COSTS  - MEETING ROOM HIRE,Finance & Corporate Services,BROWNS,PN27062016H,750
DECC,Department of Energy and Climate Change,06/07/2016,PURCHASE OF GOODS/SERVICES - OTHER PROF SERV - SHARED LEGAL SERVICES,Finance & Corporate Services,GORDON NARDELL,LD29062016A,720
DECC,Department of Energy and Climate Change,06/07/2016,Purchase Of Goods/Services - Other Professional Services,Energy Security,HAYS SPECIALIST RECRUITMENT LTD,PN17062016B,17686.63
DECC,Department of Energy and Climate Change,06/07/2016,PURCHASE OF GOODS/SERVICES - OTHER PROF SERV - OUTSOURCED PROGRAMME MANAGEMENT SERVICES,Energy Security,NATURAL ENVIRON RESEARCH COUNCIL,PN05072016D,82895.73
DECC,Department of Energy and Climate Change,06/07/2016,PURCHASE OF GOODS/SERVICES - ICT OUTSOURCING & MAINT/SUPPORT,Finance & Corporate Services,TRIAD GROUP PLC,PH300616C,674.25
DECC,Department of Energy and Climate Change,06/07/2016,PURCHASE OF GOODS/SERVICES - OTHER PROF SERV - SHARED LEGAL SERVICES,Finance & Corporate Services,LANDMARK CHAMBERS,PN27062016H,750
DECC,Department of Energy and Climate Change,06/07/2016,PURCHASE OF GOODS/SERV-ICT OUTSOURC&MAINT/SUPP- DESKTOP SERVICES,Finance & Corporate Services,FCO SERVICES,PN05072016I,14115
DECC,Department of Energy and Climate Change,06/07/2016,PURCHASE OF GOODS/SERVICES - ICT OUTSOURCING & MAINT/SUPPORT,Finance & Corporate Services,TRIAD GROUP PLC,PH300616C,860.25
DECC,Department of Energy and Climate Change,06/07/2016,CAPITAL GRANTS TO CENTRAL GOVERNMENT,Energy Transformation,OFFICE OF GAS & ELECT MARKETS,SOP6CG06JUL2016,6505800
DECC,Department of Energy and Climate Change,07/07/2016,PURCHASE OF GOODS/SERVICES - TRAINING & DEVELOPMENT,Finance & Corporate Services,E M L LEARNING LTD,PN24062016C,700
DECC,Department of Energy and Climate Change,07/07/2016,Purchase Of Goods/Services - Other Professional Services,Energy Security,HAYS SPECIALIST RECRUITMENT LTD,DEFRA_GO_LIVE_DEC_AP_INV,2048.41
DECC,Department of Energy and Climate Change,07/07/2016,PURCHASE OF GOODS/SERVICES -OTHER PROF SERV - SHARED SERVICES OUTSOURC- HR,Finance & Corporate Services,SHARED SERVICES CONNECTED LTD,AG06062016A,52829.05
DECC,Department of Energy and Climate Change,07/07/2016,PURCHASE OF GOODS/SERVICES -OTHER PROF SERV - TECHNICAL,Energy Transformation,ASE CONSULTING LTD,PN04072016C,6916
DECC,Department of Energy and Climate Change,07/07/2016,SHORT-TERM CONTRACT & AGENCY STAFF - FULL COST,Energy Security,HAYS SPECIALIST RECRUITMENT LTD,PN04072016C,2925
DECC,Department of Energy and Climate Change,07/07/2016,PURCHASE OF GOODS/SERVICES -OTHER PROF SERV - SHARED SERVICES OUTSOURC- HR,Finance & Corporate Services,MYCSP LTD,PN28062016D,17051
DECC,Department of Energy and Climate Change,07/07/2016,SHORT-TERM CONTRACT & AGENCY STAFF - FULL COST,Energy Security,HAYS SPECIALIST RECRUITMENT LTD,PN04072016C,4257.36
DECC,Department of Energy and Climate Change,07/07/2016,PURCHASE OF GOODS/SERVICES - TRAINING & DEVELOPMENT,Finance & Corporate Services,CAPITA BUSINESS SERVICES LTD,SC29062016,2045.45
DECC,Department of Energy and Climate Change,07/07/2016,PURCHASE OF GOODS/SERVICES - ACCOMM &BLDNG MNGMT - FM PROJECTS NON CAPITAL,Finance & Corporate Services,DEPARTMENT FOR EDUCATION,AG06072016D,147585.48
DECC,Department of Energy and Climate Change,07/07/2016,PURCHASE OF GOODS/SERVICES - OTHER ICT COSTS - COMPUTER SOFTWARE,Finance & Corporate Services,TRUSTMARQUE SOLUTIONS LTD,PN05072016I,134558.31
DECC,Department of Energy and Climate Change,07/07/2016,PURCHASE OF GOODS/SERVICES - ACCOMMODATION & BLDNG MANAGEMENT,Finance & Corporate Services,SPACE SOLUTIONS (SCOTLAND) LTD,HC31052016F,164022
DECC,Department of Energy and Climate Change,07/07/2016,SHORT-TERM CONTRACT & AGENCY STAFF - FULL COST,Energy Security,HAYS SPECIALIST RECRUITMENT LTD,PN04072016C,2925
DECC,Department of Energy and Climate Change,07/07/2016,PURCHASE OF GOODS/SERVICES - TRAINING & DEVELOPMENT,Finance & Corporate Services,CAPITA BUSINESS SERVICES LTD,SC25062016,10552.92
DECC,Department of Energy and Climate Change,07/07/2016,PURCHASE OF GOODS/SERVICES - ACCOMMODATION & BLDNG MANAGEMENT,Energy Security,COMPREND LTD,AG04072016B,52200
DECC,Department of Energy and Climate Change,07/07/2016,PURCHASE OF GOODS/SERVICES� - RESEARCH & DEVELOPMENT - OTHER OUTSOURCED,Finance & Corporate Services,ENERGY ASPECTS LTD,AG04072016B,4275
DECC,Department of Energy and Climate Change,07/07/2016,PURCHASE OF GOODS/SERVICES� - RESEARCH & DEVELOPMENT - OTHER OUTSOURCED,Finance & Corporate Services,SOUTH COURT LTD,AG04072016B,4800
DECC,Department of Energy and Climate Change,07/07/2016,PURCHASE OF GOODS/SERVICES -OTHER PROF SERV - TECHNICAL,Energy Transformation,ASE CONSULTING LTD,PN04072016C,23400
DECC,Department of Energy and Climate Change,07/07/2016,CAPITAL GRANTS TO PRIVATE SECTOR - COMPANIES,Energy Transformation,CAPITA BUSINESS SERVICES LTD,PN04072016C,94613
DECC,Department of Energy and Climate Change,07/07/2016,Purchase Of Goods/Services - Other Professional Services,Energy Security,HAYS SPECIALIST RECRUITMENT LTD,PN04072016C,1492.51
DECC,Department of Energy and Climate Change,07/07/2016,CAPITAL GRANTS TO PRIVATE SECTOR - COMPANIES,Energy Transformation,NATIONAL NUCLEAR LABORATORY LTD,AG05072016A,591727.89
DECC,Department of Energy and Climate Change,07/07/2016,PURCHASE OF GOODS/SERVICES - TRAINING & DEVELOPMENT,Finance & Corporate Services,CAPITA BUSINESS SERVICES LTD,AG04072016B,3048.78
DECC,Department of Energy and Climate Change,07/07/2016,PURCHASE OF GOODS/SERVICES - OTHER PROF SERV - OUTSOURCED PROGRAMME MANAGEMENT SERVICES,Energy Security,HAYS SPECIALIST RECRUITMENT LTD,PN04072016C,6258.6
DECC,Department of Energy and Climate Change,07/07/2016,SHORT-TERM CONTRACT & AGENCY STAFF - FULL COST,Energy Security,HAYS SPECIALIST RECRUITMENT LTD,PN04072016C,2450
DECC,Department of Energy and Climate Change,07/07/2016,PURCHASE OF GOODS/SERVICES - OTHER PROF SERV - OUTSOURCED PROGRAMME MANAGEMENT SERVICES,Energy Security,HAYS SPECIALIST RECRUITMENT LTD,DEFRA_GO_LIVE_DEC_AP_INV,1231.66
DECC,Department of Energy and Climate Change,07/07/2016,PURCHASE OF GOODS/SERVICES - TRAINING & DEVELOPMENT,Finance & Corporate Services,CAPITA BUSINESS SERVICES LTD,PH300616D,2045.45
DECC,Department of Energy and Climate Change,07/07/2016,PURCHASE OF GOODS/SERVICES - TRAINING & DEVELOPMENT,Finance & Corporate Services,CAPITA BUSINESS SERVICES LTD,PN27062016I,3227.91
DECC,Department of Energy and Climate Change,07/07/2016,PURCHASE OF GOODS/SERVICES - OTHER FACILITIES COSTS,Finance & Corporate Services,DEPARTMENT FOR EDUCATION,AG06072016D,15901.4
DECC,Department of Energy and Climate Change,07/07/2016,PURCHASE OF GOODS/SERVICES - TRAINING & DEVELOPMENT,Finance & Corporate Services,CAPITA BUSINESS SERVICES LTD,PN27062016I,3354
DECC,Department of Energy and Climate Change,07/07/2016,MISCELLANEOUS EXPENDITURE - OVERHEAD INCIDENTAL EXPENSES,Energy Security,BUPA WELLNESS,LD04072016,149836.57
DECC,Department of Energy and Climate Change,07/07/2016,Purchase Of Goods/Services - Other Professional Services,Energy Security,P E S G B,LD04072016,1311.1
DECC,Department of Energy and Climate Change,07/07/2016,CAPITAL GRANTS TO PRIVATE SECTOR - COMPANIES,Energy Transformation,CAPITA BUSINESS SERVICES LTD,PN04072016C,1470
DECC,Department of Energy and Climate Change,07/07/2016,SHORT-TERM CONTRACT & AGENCY STAFF - FULL COST,Energy Security,HAYS SPECIALIST RECRUITMENT LTD,LD04072016,3725.19
DECC,Department of Energy and Climate Change,07/07/2016,PURCHASE OF GOODS/SERVICES - TRAINING & DEVELOPMENT,Finance & Corporate Services,CAPITA BUSINESS SERVICES LTD,HC14062016,8550
DECC,Department of Energy and Climate Change,07/07/2016,PURCHASE OF GOODS/SERVICES - OTHER PROF SERV - OUTSOURCED PROGRAMME MANAGEMENT SERVICES,Energy Transformation,FORESTRY COMMISSION RESEARCH AGENCY.,AG20062016D,600
DECC,Department of Energy and Climate Change,07/07/2016,SHORT-TERM CONTRACT & AGENCY STAFF - FULL COST,Energy Security,HAYS SPECIALIST RECRUITMENT LTD,PN04072016C,2385.15
DECC,Department of Energy and Climate Change,07/07/2016,SHORT-TERM CONTRACT & AGENCY STAFF - FULL COST,Energy Security,HAYS SPECIALIST RECRUITMENT LTD,DEFRA_GO_LIVE_DEC_AP_INV,6386.04
DECC,Department of Energy and Climate Change,08/07/2016,PURCHASE OF GOODS/SERVICES - OTHER PROF SERV - SHARED LEGAL SERVICES,Finance & Corporate Services,BLACKSTONE CHAMBERS LIMITED,PN27062016I,1380
DECC,Department of Energy and Climate Change,08/07/2016,PURCHASE OF GOODS/SERVICES - TRAINING & DEVELOPMENT,Energy Security,STAYAHEAD TRAINING LTD,PN05072016D,3009
DECC,Department of Energy and Climate Change,08/07/2016,PURCHASE OF GOODS/SERVICES - TRAINING & DEVELOPMENT,Finance & Corporate Services,L S R TRAINING AND DEVELOPMENT,AG05072016A,700
DECC,Department of Energy and Climate Change,08/07/2016,PURCHASE OF GOODS/SERVICES - OTHER PROF SERV - OUTSOURCED PROGRAMME MANAGEMENT SERVICES,Energy Security,P W X LTD,PN05072016D,9500
DECC,Department of Energy and Climate Change,08/07/2016,PURCHASE OF GOODS/SERVICES - OTHER PROF SERV - OUTSOURCED PROGRAMME MANAGEMENT SERVICES,Energy Transformation,METHODS PROFESSIONAL SERVICES LTD,PN05072016D,13500
DECC,Department of Energy and Climate Change,08/07/2016,PURCHASE OF GOODS/SERVICES - OTHER PROF SERV - OUTSOURCED PROGRAMME MANAGEMENT SERVICES,Energy Security,GENESIS OIL & GAS CONSULTANTS LTD,AG04072016,3628.36
DECC,Department of Energy and Climate Change,08/07/2016,PURCHASE OF GOODS/SERVICES - OTHER PROF SERV - SHARED LEGAL SERVICES,Finance & Corporate Services,BLACKSTONE CHAMBERS LIMITED,PN27062016I,920
DECC,Department of Energy and Climate Change,08/07/2016,PURCHASE OF GOODS/SERVICES - TRAINING & DEVELOPMENT,Finance & Corporate Services,CAPITA BUSINESS SERVICES LTD,PN05072016D,2045.45
DECC,Department of Energy and Climate Change,08/07/2016,PURCHASE OF GOODS/SERVICES - ICT OUTSOURCING & MAINT/SUPPORT,Energy Security,C G I IT UK LTD,PN05072016D,961.34
DECC,Department of Energy and Climate Change,08/07/2016,PURCHASE OF GOODS/SERVICES - OTHER PROF SERV - OUTSOURCED PROGRAMME MANAGEMENT SERVICES,Energy Transformation,METHODS PROFESSIONAL SERVICES LTD,PN05072016D,15675
DECC,Department of Energy and Climate Change,08/07/2016,PURCHASE OF GOODS/SERVICES - TRAINING & DEVELOPMENT,Finance & Corporate Services,CAPITA BUSINESS SERVICES LTD,AG05072016A,625
DECC,Department of Energy and Climate Change,08/07/2016,PURCHASE OF GOODS/SERVICES -OTHER PROF SERV - TECHNICAL,Energy Transformation,ASE CONSULTING LTD,AG05072016A,20254
DECC,Department of Energy and Climate Change,08/07/2016,PURCHASE OF GOODS/SERVICES - TRAINING & DEVELOPMENT,Energy Security,STAYAHEAD TRAINING LTD,PN05072016D,2920.5
DECC,Department of Energy and Climate Change,08/07/2016,PURCHASE OF GOODS/SERVICES - ICT OUTSOURCING & MAINT/SUPPORT,Energy Security,C G I IT UK LTD,PN05072016D,933.07
DECC,Department of Energy and Climate Change,08/07/2016,PURCHASE OF GOODS/SERVICES - OTHER PROF SERV - OUTSOURCED PROGRAMME MANAGEMENT SERVICES,Energy Transformation,METHODS PROFESSIONAL SERVICES LTD,LD05072016B,8000
DECC,Department of Energy and Climate Change,08/07/2016,PURCHASE OF GOODS/SERVICES - OTHER FACILITIES COSTS,Finance & Corporate Services,APPLEYARDS LTD,PN17062016B,10999.57
DECC,Department of Energy and Climate Change,08/07/2016,PURCHASE OF GOODS/SERV-ICT OUTSOURC&MAINT/SUPP- DESKTOP SERVICES,Finance & Corporate Services,FIVIUM LTD,PN05072016D,7808
DECC,Department of Energy and Climate Change,08/07/2016,PURCHASE OF GOODS/SERVICES - ICT OUTSOURCING & MAINT/SUPPORT,Energy Security,C G I IT UK LTD,PN05072016D,933.07
DECC,Department of Energy and Climate Change,08/07/2016,PURCHASE OF GOODS/SERVICES -OTHER PROF SERV - TECHNICAL,Energy Transformation,REYNOLDS PORTER CHAMBERLAIN LLP,PN05072016D,10895
DECC,Department of Energy and Climate Change,08/07/2016,SHORT-TERM CONTRACT & AGENCY STAFF - FULL COST,Finance & Corporate Services,ADECCO UK LTD,HC05072016,711.72
DECC,Department of Energy and Climate Change,08/07/2016,PURCHASE OF GOODS/SERVICES -OTHER PROF SERV - TECHNICAL,Energy Transformation,ASE CONSULTING LTD,AG05072016A,16972.5
DECC,Department of Energy and Climate Change,08/07/2016,PURCHASE OF GOODS/SERVICES - OTHER PROF SERV - OUTSOURCED PROGRAMME MANAGEMENT SERVICES,Energy Security,GENESIS OIL & GAS CONSULTANTS LTD,AG04072016,18629.36
DECC,Department of Energy and Climate Change,08/07/2016,PURCHASE OF GOODS/SERV-ICT OUTSOURC&MAINT/SUPP- IT OTHER NETWORK SERVICES,Energy Transformation,FIVIUM LTD,PN05072016D,4164
DECC,Department of Energy and Climate Change,08/07/2016,Purchase Of Goods/Services - Other Professional Services,Energy Security,THE INDUSTRY TECHNOLOGY FACILITATOR,PN05072016D,10740
DECC,Department of Energy and Climate Change,08/07/2016,PURCHASE OF GOODS/SERVICES - OTHER PROF SERV - OUTSOURCED PROGRAMME MANAGEMENT SERVICES,Energy Transformation,METHODS PROFESSIONAL SERVICES LTD,PN05072016D,8750
DECC,Department of Energy and Climate Change,08/07/2016,SHORT-TERM CONTRACT & AGENCY STAFF - FULL COST,Energy Security,HAYS SPECIALIST RECRUITMENT LTD,DEFRA_GO_LIVE_DEC_AP_INV,3193.02
DECC,Department of Energy and Climate Change,08/07/2016,PURCHASE OF GOODS/SERVICES - PERSONNEL RELATED - RECRUITMENT ADVERTISING,Finance & Corporate Services,CURZON TRINITAS LTD,PN05072016D,6000
DECC,Department of Energy and Climate Change,08/07/2016,PURCHASE OF GOODS/SERVICES - TRAINING & DEVELOPMENT,Energy Security,STAYAHEAD TRAINING LTD,PN05072016D,2920.5
DECC,Department of Energy and Climate Change,11/07/2016,PURCHASE OF GOODS/SERVICES - TRAINING & DEVELOPMENT,Finance & Corporate Services,CORNWALL ENERGY ASSOCIATES LTD,PH260516/03,595
DECC,Department of Energy and Climate Change,11/07/2016,SHORT-TERM CONTRACT & AGENCY STAFF - FULL COST,Energy Security,ADECCO UK LTD,PN06072016E,670.77
DECC,Department of Energy and Climate Change,11/07/2016,SHORT-TERM CONTRACT & AGENCY STAFF - FULL COST,Energy Transformation,ADECCO UK LTD,PN06072016E,673.75
DECC,Department of Energy and Climate Change,11/07/2016,SHORT-TERM CONTRACT & AGENCY STAFF - FULL COST,Finance & Corporate Services,ADECCO UK LTD,DEFRA_GO_LIVE_DEC_AP_INV,711.72
DECC,Department of Energy and Climate Change,11/07/2016,SHORT-TERM CONTRACT & AGENCY STAFF - FULL COST,Energy Security,ADECCO UK LTD,PN06072016E,838.46
DECC,Department of Energy and Climate Change,11/07/2016,PURCHASE OF GOODS/SERVICES -OTHER PROFESSIONAL SERVICES - LEGAL,Energy Security,ERNST & YOUNG LLP,AG06072016D,5000
DECC,Department of Energy and Climate Change,11/07/2016,PURCHASE OF GOODS/SERVICES - MARKETING & MEDIA,Finance & Corporate Services,PRECISE MEDIA MONITORING LTD,AG06072016D,1458.33
DECC,Department of Energy and Climate Change,11/07/2016,SHORT-TERM CONTRACT & AGENCY STAFF - FULL COST,Finance & Corporate Services,ADECCO UK LTD,SC01062016A,711.72
DECC,Department of Energy and Climate Change,11/07/2016,SHORT-TERM CONTRACT & AGENCY STAFF - FULL COST,Finance & Corporate Services,ADECCO UK LTD,SC01062016A,721.61
DECC,Department of Energy and Climate Change,11/07/2016,SHORT-TERM CONTRACT & AGENCY STAFF - FULL COST,Finance & Corporate Services,ADECCO UK LTD,AG13062016C,716.66
DECC,Department of Energy and Climate Change,11/07/2016,SHORT-TERM CONTRACT & AGENCY STAFF - FULL COST,Energy Security,ADECCO UK LTD,PN06072016E,873.16
DECC,Department of Energy and Climate Change,11/07/2016,SHORT-TERM CONTRACT & AGENCY STAFF - FULL COST,Energy Transformation,ADECCO UK LTD,PN06072016E,663.39
DECC,Department of Energy and Climate Change,11/07/2016,SHORT-TERM CONTRACT & AGENCY STAFF - FULL COST,Energy Security,MICHAEL PAGE INTERNATIONAL RECRUITMENT LTD,AG06072016D,4374.55
DECC,Department of Energy and Climate Change,11/07/2016,SHORT-TERM CONTRACT & AGENCY STAFF - FULL COST,Finance & Corporate Services,ADECCO UK LTD,PH220616A,568.39
DECC,Department of Energy and Climate Change,11/07/2016,SHORT-TERM CONTRACT & AGENCY STAFF - FULL COST,Energy Security,ADECCO UK LTD,PN06072016E,763.29
DECC,Department of Energy and Climate Change,11/07/2016,SHORT-TERM CONTRACT & AGENCY STAFF - FULL COST,Energy Security,ADECCO UK LTD,PN06072016E,601.38
DECC,Department of Energy and Climate Change,11/07/2016,PURCHASE OF GOODS/SERVICES -OTHER PROF SERV - TECHNICAL,Energy Transformation,QUO IMUS LTD T/A Q I CONSULTING,AG06072016D,18750
DECC,Department of Energy and Climate Change,11/07/2016,SHORT-TERM CONTRACT & AGENCY STAFF - FULL COST,Finance & Corporate Services,ADECCO UK LTD,DEFRA_GO_LIVE_DEC_AP_INV,662.3
DECC,Department of Energy and Climate Change,11/07/2016,PURCHASE OF GOODS/SERVICES -OTHER PROF SERV - SHARED SERVICES OUTSOURC- HR,Finance & Corporate Services,SHARED SERVICES CONNECTED LTD,PN05072016D,52829
DECC,Department of Energy and Climate Change,11/07/2016,SHORT-TERM CONTRACT & AGENCY STAFF - FULL COST,Energy Transformation,ADECCO UK LTD,PN06072016E,513.66
DECC,Department of Energy and Climate Change,11/07/2016,PURCHASE OF GOODS/SERVICES - PERSONNEL RELATED - MEMBERSHIP OF ORGANISATIONS,Finance & Corporate Services,UNIVERSITY OF CAMBRIDGE JUDGE BUSINESS SCHOOL,AG06072016D,3000
DECC,Department of Energy and Climate Change,11/07/2016,SHORT-TERM CONTRACT & AGENCY STAFF - FULL COST,Finance & Corporate Services,ADECCO UK LTD,DEFRA_GO_LIVE_DEC_AP_INV,696.73
DECC,Department of Energy and Climate Change,11/07/2016,PURCHASE OF GOODS/SERVICES - OTHER - RESEARCH AND DEVELOPMENT,Finance & Corporate Services,ENERDATA,NULL,11988
DECC,Department of Energy and Climate Change,11/07/2016,SHORT-TERM CONTRACT & AGENCY STAFF - FULL COST,Finance & Corporate Services,ADECCO UK LTD,PN06072016E,711.72
DECC,Department of Energy and Climate Change,11/07/2016,SHORT-TERM CONTRACT & AGENCY STAFF - FULL COST,Finance & Corporate Services,ADECCO UK LTD,PH220616A,711.72
DECC,Department of Energy and Climate Change,11/07/2016,Purchase Of Goods/Services - Other Professional Services,Energy Security,C M S CAMERON MCKENNA LLP,PH300616C,3000
DECC,Department of Energy and Climate Change,11/07/2016,PURCHASE OF GOODS/SERVICES - OTHER - PROGRAMME EXPENDITURE,Energy Transformation,WORLD RESOURCES INSTITUTE,NULL,43203.68
DECC,Department of Energy and Climate Change,11/07/2016,CAPITAL GRANTS TO CENTRAL GOVERNMENT,Energy Transformation,OFFICE OF GAS & ELECT MARKETS,NULL,40377081
DECC,Department of Energy and Climate Change,11/07/2016,SHORT-TERM CONTRACT & AGENCY STAFF - FULL COST,Energy Security,ADECCO UK LTD,PN06072016E,705.47
DECC,Department of Energy and Climate Change,11/07/2016,SHORT-TERM CONTRACT & AGENCY STAFF - FULL COST,Finance & Corporate Services,ADECCO UK LTD,LD06072016C,701.53
DECC,Department of Energy and Climate Change,11/07/2016,PURCHASE OF GOODS/SERV-ICT OUTSOURC&MAINT/SUPP- DESKTOP SERVICES,Finance & Corporate Services,FORDWAY SOLUTIONS LTD,AG06072016D,12150
DECC,Department of Energy and Climate Change,11/07/2016,SHORT-TERM CONTRACT & AGENCY STAFF - FULL COST,Finance & Corporate Services,ADECCO UK LTD,AG27052016B,627.7
DECC,Department of Energy and Climate Change,11/07/2016,PURCHASE OF GOODS/SERVICES - OTHER PROF SERV - OUTSOURCED PROGRAMME MANAGEMENT SERVICES,Energy Security,C M S CAMERON MCKENNA LLP,PH300616C,3656.42
DECC,Department of Energy and Climate Change,11/07/2016,SHORT-TERM CONTRACT & AGENCY STAFF - FULL COST,Finance & Corporate Services,ADECCO UK LTD,AG13062016C,711.72
DECC,Department of Energy and Climate Change,11/07/2016,SHORT-TERM CONTRACT & AGENCY STAFF - FULL COST,Energy Security,ADECCO UK LTD,PN06072016E,832.68
DECC,Department of Energy and Climate Change,11/07/2016,PURCHASE OF GOODS/SERVICES -OTHER PROF SERV - SHARED SERVICES OUTSOURC- HR,Finance & Corporate Services,MYCSP LTD,SE26062016C,3450
DECC,Department of Energy and Climate Change,11/07/2016,PURCHASE OF GOODS/SERVICES - PERSONNEL RELATED - MEMBERSHIP OF ORGANISATIONS,Energy Security,PUBLIC CONCERN AT WORK,AG06072016D,750
DECC,Department of Energy and Climate Change,12/07/2016,SHORT-TERM CONTRACT & AGENCY STAFF - FULL COST,Energy Security,BROOK STREET (UK) LTD,LD07072016B,3147.6
DECC,Department of Energy and Climate Change,12/07/2016,SHORT-TERM CONTRACT & AGENCY STAFF - FULL COST,Energy Security,BROOK STREET (UK) LTD,LD07072016A,2518.08
DECC,Department of Energy and Climate Change,12/07/2016,PURCHASE OF GOODS/SERVICES - TRAINING & DEVELOPMENT,Finance & Corporate Services,CAPITA BUSINESS SERVICES LTD,SHDECC07062016,3658.54
DECC,Department of Energy and Climate Change,12/07/2016,PURCHASE OF GOODS/SERVICES - OTHER PROF SERV - OUTSOURCED PROGRAMME MANAGEMENT SERVICES,Energy Transformation,OVE ARUP & PARTNERS INTERNATIONAL LTD,AG07072016A,16785.64
DECC,Department of Energy and Climate Change,12/07/2016,PURCHASE OF GOODS/SERVICES� - RESEARCH & DEVELOPMENT - OTHER OUTSOURCED,Energy Transformation,CARBON SMART LTD,LD07072016B,2200
DECC,Department of Energy and Climate Change,12/07/2016,PURCHASE OF GOODS/SERVICES - OTHER - BANK CHARGES,Finance & Corporate Services,DECC,NULL,736.78
DECC,Department of Energy and Climate Change,12/07/2016,MISCELLANEOUS EXPENDITURE - OVERHEAD INCIDENTAL EXPENSES,Energy Security,C P L DISTRIBUTION LTD T/A C P L FUELS,AG07072016A,12500
DECC,Department of Energy and Climate Change,12/07/2016,PURCHASE OF GOODS/SERVICES - OTHER PROF SERV - OUTSOURCED PROGRAMME MANAGEMENT SERVICES,Energy Transformation,B V G ASSOCIATES LTD,AG07072016A,2246.25
DECC,Department of Energy and Climate Change,12/07/2016,Purchase Of Goods/Services - Other Professional Services,Energy Security,LOUGHBOROUGH UNIVERSITY ENTERPRISES LTD,LD07072016A,2000
DECC,Department of Energy and Climate Change,12/07/2016,PURCHASE OF GOODS/SERVICES - TRAINING & DEVELOPMENT,Finance & Corporate Services,CAPITA BUSINESS SERVICES LTD,PH300616D,1227.27
DECC,Department of Energy and Climate Change,12/07/2016,Purchase Of Goods/Services - Other Professional Services,Energy Security,LOUGHBOROUGH UNIVERSITY ENTERPRISES LTD,AG07072016A,2197.7
DECC,Department of Energy and Climate Change,12/07/2016,PURCHASE OF GOODS/SERV-ICT OUTSOURC&MAINT/SUPP- DESKTOP SERVICES,Finance & Corporate Services,VISIONIST LIMITED,LD07072016B,28905
DECC,Department of Energy and Climate Change,12/07/2016,PURCHASE OF GOODS/SERVICES - OTHER ICT COSTS - COMPUTER SOFTWARE,Finance & Corporate Services,MICROSOFT IRELAND OPERATIONS LTD,LD07072016B,1075.74
DECC,Department of Energy and Climate Change,12/07/2016,SHORT-TERM CONTRACT & AGENCY STAFF - FULL COST,Energy Security,BROOK STREET (UK) LTD,LD07072016B,3147.6
DECC,Department of Energy and Climate Change,12/07/2016,PURCHASE OF GOODS/SERVICES� - RESEARCH & DEVELOPMENT - OTHER OUTSOURCED,Energy Transformation,CARBON SMART LTD,LD07072016B,2200
DECC,Department of Energy and Climate Change,12/07/2016,PURCHASE OF GOODS/SERVICES - OTHER - RESEARCH AND DEVELOPMENT,Finance & Corporate Services,CAMBRIDGE ENERGY,LD07072016B,35150
DECC,Department of Energy and Climate Change,12/07/2016,PURCHASE OF GOODS/SERVICES - TELECOMS - MOBILE PHONES,Finance & Corporate Services,VODAFONE LTD,SC07072016,10568.86
DECC,Department of Energy and Climate Change,12/07/2016,PURCHASE OF GOODS/SERVICES - TELECOMS - MOBILE PHONES,Finance & Corporate Services,VODAFONE LTD,SC07072016,1952.47
DECC,Department of Energy and Climate Change,12/07/2016,PURCHASE OF GOODS/SERVICES - TRAINING & DEVELOPMENT,Finance & Corporate Services,CAPITA BUSINESS SERVICES LTD,SHDECC09062016A,3048.78
DECC,Department of Energy and Climate Change,12/07/2016,SUBSIDIES TO PRIVATE SECTOR - COMPANIES,Energy Security,BASSETLAW CITIZEN ADVICE BUREAU,AG07072016A,1000
DECC,Department of Energy and Climate Change,12/07/2016,PURCHASE OF GOODS/SERVICES - OTHER PROF SERV - OUTSOURCED PROGRAMME MANAGEMENT SERVICES,Energy Transformation,AECOM LTD,LD07072016B,3248.56
DECC,Department of Energy and Climate Change,12/07/2016,PURCHASE OF GOODS/SERVICES - OTHER FACILITIES COSTS,Finance & Corporate Services,NETWORK 2 SUPPLIERS LTD,LD07072016B,2000
DECC,Department of Energy and Climate Change,12/07/2016,SHORT-TERM CONTRACT & AGENCY STAFF - FULL COST,Energy Security,BROOK STREET (UK) LTD,LD07072016A,3147.6
DECC,Department of Energy and Climate Change,13/07/2016,PURCHASE OF GOODS/SERVICES -OTHER PROF SERV - TREASURY SOLICITORS,Energy Security,ANDERSON STRATHERN LLP,PN20062016C,1002
DECC,Department of Energy and Climate Change,13/07/2016,PURCHASE OF GOODS/SERVICES - OTHER PROF SERV - OUTSOURCED PROGRAMME MANAGEMENT SERVICES,Energy Transformation,CARILLION ENERGY SERVICES LTD,AG08072016F,29150.59
DECC,Department of Energy and Climate Change,13/07/2016,PURCHASE OF GOODS/SERV-ICT OUTSOURC&MAINT/SUPP- DESKTOP SERVICES,Finance & Corporate Services,UPGRADE OPTIONS LTD,PN08072016H,3271.79
DECC,Department of Energy and Climate Change,13/07/2016,PURCHASE OF GOODS/SERVICES - OTHER PROF SERV - OUTSOURCED PROGRAMME MANAGEMENT SERVICES,Energy Transformation,CARBON TRUST,AG08072016F,78000
DECC,Department of Energy and Climate Change,13/07/2016,SHORT-TERM CONTRACT & AGENCY STAFF - FULL COST,Energy Security,HAYS SPECIALIST RECRUITMENT LTD,AG08072016F,1223.54
DECC,Department of Energy and Climate Change,13/07/2016,PURCHASE OF GOODS/SERVICES - TRAINING & DEVELOPMENT,Finance & Corporate Services,CAPITA BUSINESS SERVICES LTD,PN08072016F,2864
DECC,Department of Energy and Climate Change,13/07/2016,PURCHASE OF GOODS/SERVICES -OTHER PROF SERV - SHARED SERVICES OUTSOURC- HR,Finance & Corporate Services,MYCSP LTD,PN08072016F,697.72
DECC,Department of Energy and Climate Change,13/07/2016,Purchase Of Goods/Services - Other Professional Services,Energy Transformation,VISIONIST LIMITED,PN08072016F,4770
DECC,Department of Energy and Climate Change,13/07/2016,PURCHASE OF GOODS/SERVICES - OTHER PROF SERV - OUTSOURCED PROGRAMME MANAGEMENT SERVICES,Energy Transformation,CARBON TRUST,AG08072016F,78000
DECC,Department of Energy and Climate Change,13/07/2016,PURCHASE OF GOODS/SERVICES - OTHER - RESEARCH AND DEVELOPMENT,Energy Transformation,MARKET & OPINION RESEARCH INTERNATIONAL LTD T/A IPSOS MORI,PN15062016E,5200
DECC,Department of Energy and Climate Change,13/07/2016,PURCHASE OF GOODS/SERVICES - OTHER PROF SERV - OUTSOURCED PROGRAMME MANAGEMENT SERVICES,Energy Security,NATIONAL NUCLEAR LABORATORY LTD,AG08072016F,66863.25
DECC,Department of Energy and Climate Change,13/07/2016,PURCHASE OF GOODS/SERVICES - OTHER ICT COSTS - COMPUTER SOFTWARE,Finance & Corporate Services,TRUSTMARQUE SOLUTIONS LTD,LD04072016C,175172.79
DECC,Department of Energy and Climate Change,13/07/2016,PURCHASE OF GOODS/SERVICES - OTHER PROF SERV - OUTSOURCED PROGRAMME MANAGEMENT SERVICES,Energy Transformation,ENERGY SAVING TRUST LTD,PN05072016D,185233.25
DECC,Department of Energy and Climate Change,13/07/2016,PURCHASE OF GOODS/SERVICES - OTHER PROF SERV - OUTSOURCED PROGRAMME MANAGEMENT SERVICES,Energy Transformation,LUX NOVA PARTNERS LTD,AG08072016F,7875
DECC,Department of Energy and Climate Change,13/07/2016,SHORT-TERM CONTRACT & AGENCY STAFF - FULL COST,Energy Transformation,HAYS SPECIALIST RECRUITMENT LTD,AG08072016F,804.36
DECC,Department of Energy and Climate Change,14/07/2016,PURCHASE OF GOODS/SERVICES - TRAINING & DEVELOPMENT,Finance & Corporate Services,BENEFACTO,PN11072016E,5000
DECC,Department of Energy and Climate Change,14/07/2016,PURCHASE OF GOODS/SERVICES - TRAINING & DEVELOPMENT,Finance & Corporate Services,THE CONSERVATION VOLUNTEERS,PN11072016B,637
DECC,Department of Energy and Climate Change,14/07/2016,PURCHASE OF GOODS/SERV-ICT OUTSOURC&MAINT/SUPP- DESKTOP SERVICES,Finance & Corporate Services,JOHNSON DREWERY LTD,LD07072016B,30280
DECC,Department of Energy and Climate Change,14/07/2016,Purchase Of Goods/Services - Contractors,Central Budgets,CAPITA BUSINESS SERVICES LTD,SHDECC07062016,23649.02
DECC,Department of Energy and Climate Change,14/07/2016,PURCHASE OF GOODS/SERVICES - PERSONNEL RELATED - MEMBERSHIP OF ORGANISATIONS,Finance & Corporate Services,CHARTERED INSTITUTE OF PERSONNEL AND DEVELOPMENT,PN11072016B,2000
DECC,Department of Energy and Climate Change,14/07/2016,SHORT-TERM CONTRACT & AGENCY STAFF - FULL COST,Energy Security,HAYS SPECIALIST RECRUITMENT LTD,PN11072016B,1732.5
DECC,Department of Energy and Climate Change,14/07/2016,SHORT-TERM CONTRACT & AGENCY STAFF - FULL COST,Energy Security,HAYS SPECIALIST RECRUITMENT LTD,PN11072016E,2925
DECC,Department of Energy and Climate Change,14/07/2016,PURCHASE OF GOODS/SERVICES - TRAINING & DEVELOPMENT,Finance & Corporate Services,LEARNSHEDLIVE LTD,PN11072016B,850
DECC,Department of Energy and Climate Change,14/07/2016,Purchase Of Goods/Services - Contractors,Central Budgets,CAPITA BUSINESS SERVICES LTD,AG08072016F,42816.23
DECC,Department of Energy and Climate Change,14/07/2016,Purchase Of Goods/Services - Contractors,Central Budgets,CAPITA BUSINESS SERVICES LTD,PN10062016,56188.46
DECC,Department of Energy and Climate Change,14/07/2016,SHORT-TERM CONTRACT & AGENCY STAFF - FULL COST,Energy Security,HAYS SPECIALIST RECRUITMENT LTD,PN11072016E,2385.15
DECC,Department of Energy and Climate Change,14/07/2016,PURCHASE OF GOODS/SERVICES - OTHER PROF SERV - OUTSOURCED PROGRAMME MANAGEMENT SERVICES,Energy Security,HAYS SPECIALIST RECRUITMENT LTD,PN11072016E,5846.67
DECC,Department of Energy and Climate Change,14/07/2016,Purchase Of Goods/Services - Other Professional Services,Energy Security,HAYS SPECIALIST RECRUITMENT LTD,PN11072016E,1705.72
DECC,Department of Energy and Climate Change,14/07/2016,PURCHASE OF GOODS/SERV-ICT OUTSOURC&MAINT/SUPP- DESKTOP SERVICES,Finance & Corporate Services,FORDWAY SOLUTIONS LTD,NULL,9540
DECC,Department of Energy and Climate Change,14/07/2016,PURCHASE OF GOODS/SERVICES - OTHER PROF SERV - OUTSOURCED PROGRAMME MANAGEMENT SERVICES,Energy Transformation,C I B S E SERVICES LTD,PN22062016E,2000
DECC,Department of Energy and Climate Change,14/07/2016,PURCHASE OF GOODS/SERVICES - TRAINING & DEVELOPMENT,Energy Security,CORNWALL ENERGY ASSOCIATES LTD,AG06072016D,1090
DECC,Department of Energy and Climate Change,14/07/2016,SHORT-TERM CONTRACT & AGENCY STAFF - FULL COST,Central Budgets,BROOK STREET (UK) LTD,PN11072016B,5838.42
DECC,Department of Energy and Climate Change,14/07/2016,PURCHASE OF GOODS/SERVICES - TRAINING & DEVELOPMENT,Finance & Corporate Services,LEARNSHEDLIVE LTD,PN11072016B,500
DECC,Department of Energy and Climate Change,14/07/2016,Purchase Of Goods/Services - Contractors,Central Budgets,CAPITA BUSINESS SERVICES LTD,PH230616E,48187.24
DECC,Department of Energy and Climate Change,14/07/2016,Purchase Of Goods/Services - Contractors,Central Budgets,CAPITA BUSINESS SERVICES LTD,PN20062016C,54761.61
DECC,Department of Energy and Climate Change,14/07/2016,SHORT-TERM CONTRACT & AGENCY STAFF - FULL COST,Energy Security,HAYS SPECIALIST RECRUITMENT LTD,PN11072016E,2925
DECC,Department of Energy and Climate Change,14/07/2016,SHORT-TERM CONTRACT & AGENCY STAFF - FULL COST,Energy Security,HAYS SPECIALIST RECRUITMENT LTD,PN11072016E,2925
DECC,Department of Energy and Climate Change,14/07/2016,Purchase Of Goods/Services - Other Professional Services,Energy Security,GEOSCIENCE WALES LTD,PN11072016B,29750
DECC,Department of Energy and Climate Change,14/07/2016,Purchase Of Goods/Services - Other Professional Services,Energy Security,HAYS SPECIALIST RECRUITMENT LTD,PN11072016B,4987.5
DECC,Department of Energy and Climate Change,14/07/2016,CURRENT GRANTS TO LOCAL GOVERNMENT,Energy Transformation,WEST YORKSHIRE COMBINED AUTHORITY,NULL,120600
DECC,Department of Energy and Climate Change,14/07/2016,Purchase Of Goods/Services - Contractors,Central Budgets,CAPITA BUSINESS SERVICES LTD,PN10062016F,79818.25
DECC,Department of Energy and Climate Change,14/07/2016,SHORT-TERM CONTRACT & AGENCY STAFF - FULL COST,Energy Security,HAYS SPECIALIST RECRUITMENT LTD,PN11072016E,3193.02
DECC,Department of Energy and Climate Change,14/07/2016,SHORT-TERM CONTRACT & AGENCY STAFF - FULL COST,Energy Security,HAYS SPECIALIST RECRUITMENT LTD,PN11072016E,2450
DECC,Department of Energy and Climate Change,14/07/2016,PURCHASE OF GOODS/SERVICES - OTHER FACILITIES COSTS,Finance & Corporate Services,APPLEYARDS LTD,PN17062016B,1319.95
DECC,Department of Energy and Climate Change,14/07/2016,SHORT-TERM CONTRACT & AGENCY STAFF - FULL COST,Central Budgets,BROOK STREET (UK) LTD,LD04072016,7546.92
DECC,Department of Energy and Climate Change,15/07/2016,PURCHASE OF GOODS/SERV-ICT OUTSOURC&MAINT/SUPP- DESKTOP SERVICES,Finance & Corporate Services,C G I IT UK LTD,PN12072016E,1492.31
DECC,Department of Energy and Climate Change,15/07/2016,SHORT-TERM CONTRACT & AGENCY STAFF - FULL COST,Central Budgets,BROOK STREET (UK) LTD,PN12072016E,527.4
DECC,Department of Energy and Climate Change,15/07/2016,PURCHASE OF GOODS/SERV-ICT OUTSOURC&MAINT/SUPP- DESKTOP SERVICES,Finance & Corporate Services,C G I IT UK LTD,PN12072016E,2406.74
DECC,Department of Energy and Climate Change,15/07/2016,PURCHASE OF GOODS/SERVICES� - RESEARCH & DEVELOPMENT - OTHER OUTSOURCED,Finance & Corporate Services,MICROSOFT IRELAND OPERATIONS LTD,PN12072016E,686.91
DECC,Department of Energy and Climate Change,15/07/2016,PURCHASE OF GOODS/SERVICES - TRAINING & DEVELOPMENT,Finance & Corporate Services,CAPITA BUSINESS SERVICES LTD,PN12072016E,8181.8
DECC,Department of Energy and Climate Change,15/07/2016,SHORT-TERM CONTRACT & AGENCY STAFF - FULL COST,Central Budgets,BROOK STREET (UK) LTD,PN12072016E,648.25
DECC,Department of Energy and Climate Change,15/07/2016,PURCHASE OF GOODS/SERVICES - OTHER - UK SUBSCRIPTIONS,Energy Transformation,OECD,SCSOP5/615072016,243325.26
DECC,Department of Energy and Climate Change,15/07/2016,PURCHASE OF GOODS/SERVICES� - RESEARCH & DEVELOPMENT - OTHER OUTSOURCED,Energy Transformation,MARKET & OPINION RESEARCH INTERNATIONAL LTD T/A IPSOS MORI,PN12072016E,72355
DECC,Department of Energy and Climate Change,15/07/2016,PURCHASE OF GOODS/SERVICES - OTHER - RESEARCH AND DEVELOPMENT,Energy Security,GGD AMSTERDAM,SCSOP5/615072016,1360.81
DECC,Department of Energy and Climate Change,15/07/2016,PURCHASE OF GOODS/SERV-ICT OUTSOURC&MAINT/SUPP- DESKTOP SERVICES,Finance & Corporate Services,C G I IT UK LTD,PN12072016E,1394.96
DECC,Department of Energy and Climate Change,15/07/2016,SHORT-TERM CONTRACT & AGENCY STAFF - FULL COST,Central Budgets,BROOK STREET (UK) LTD,PN12072016E,632.88
DECC,Department of Energy and Climate Change,15/07/2016,SHORT-TERM CONTRACT & AGENCY STAFF - FULL COST,Central Budgets,BROOK STREET (UK) LTD,PN12072016E,676.44
DECC,Department of Energy and Climate Change,18/07/2016,PURCHASE OF GOODS/SERVICES - TRAINING & DEVELOPMENT,Finance & Corporate Services,BENEFACTO,PN11072016E,5000
DECC,Department of Energy and Climate Change,18/07/2016,PURCHASE OF GOODS/SERVICES - CONSULTANCY - TECHNICAL,Energy Security,GOVERNMENT ACTUARY DEPARTMENT,PN15072016B,4717.5
DECC,Department of Energy and Climate Change,18/07/2016,PURCHASE OF GOODS/SERVICES - OTHER FACILITIES COSTS,Energy Security,EMMANUEL CENTRE,LD13072016E,7405
DECC,Department of Energy and Climate Change,18/07/2016,PURCHASE OF GOODS/SERVICES - OTHER PROF SERV - OUTSOURCED PROGRAMME MANAGEMENT SERVICES,Energy Security,TORRIDONIA LTD,SC13072016,1718.57
DECC,Department of Energy and Climate Change,18/07/2016,PURCHASE OF GOODS/SERVICES -OTHER PROFESSIONAL SERVICES - LEGAL,Energy Security,GOVERNMENT LEGAL DEPARTMENT,PH15072016A,550.8
DECC,Department of Energy and Climate Change,18/07/2016,PURCHASE OF GOODS/SERVICES - ACCOMMODATION &BLDNG MNGMT- RENT TO LANDLORDS,Finance & Corporate Services,CAPITA PROPERTY & INFRASTRUCTURE LTD,LD13072016E,511859.18
DECC,Department of Energy and Climate Change,18/07/2016,Purchase Of Goods/Services - Other Professional Services,Energy Security,TORRIDONIA LTD,SC13072016,2725.93
DECC,Department of Energy and Climate Change,18/07/2016,PURCHASE OF GOODS/SERVICES - OTHER FACILITIES COSTS,Finance & Corporate Services,CAPITA PROPERTY & INFRASTRUCTURE LTD,LD13072016E,157658.67
DECC,Department of Energy and Climate Change,18/07/2016,SHORT-TERM CONTRACT & AGENCY STAFF - FULL COST,Energy Security,MICHAEL PAGE INTERNATIONAL RECRUITMENT LTD,LD13072016E,4374.55
DECC,Department of Energy and Climate Change,18/07/2016,PURCHASE OF GOODS/SERVICES - OTHER PROF SERV - OUTSOURCED PROGRAMME MANAGEMENT SERVICES,Energy Transformation,ENERGENCE LTD,LD13072016E,4820
DECC,Department of Energy and Climate Change,19/07/2016,PURCHASE OF GOODS/SERVICES - OTHER FACILITIES COSTS,Finance & Corporate Services,CAPITA PROPERTY & INFRASTRUCTURE LTD,LD13072016E,129439.19
DECC,Department of Energy and Climate Change,19/07/2016,PURCHASE OF GOODS/SERVICES - OTHER FACILITIES COSTS,Finance & Corporate Services,CAPITA PROPERTY & INFRASTRUCTURE LTD,LD13072016E,28219.48
DECC,Department of Energy and Climate Change,19/07/2016,CAPITAL GRANTS TO PRIVATE SECTOR - COMPANIES,Energy Transformation,HIGH VOLTAGE PARTICAL DISCHARGE LTD,SCSOP5/619072016,803.55
DECC,Department of Energy and Climate Change,19/07/2016,PURCHASE OF GOODS/SERVICES - PERSONNEL RELATED - RECRUITMENT ADVERTISING,Strategy,PENNA PLC,HC31052016D,654
DECC,Department of Energy and Climate Change,19/07/2016,PURCHASE OF GOODS/SERV-ICT OUTSOURC&MAINT/SUPP- DESKTOP SERVICES,Finance & Corporate Services,C G I IT UK LTD,DEFRA_GO_LIVE_DEC_AP_INV,5963.8
DECC,Department of Energy and Climate Change,19/07/2016,CAPITAL GRANTS TO PRIVATE SECTOR - COMPANIES,Energy Transformation,FUTURE ENVIRONMENTAL TECHNOLOGIES-ENGINEERING,SCSOP5/619072016,43320.47
DECC,Department of Energy and Climate Change,19/07/2016,PURCHASE OF GOODS/SERVICES - OTHER FACILITIES COSTS,Finance & Corporate Services,FCO SERVICES,PN18072016A,3050
DECC,Department of Energy and Climate Change,19/07/2016,CURRENT GRANTS TO LOCAL GOVERNMENT,Energy Transformation,LOCAL PARTNERSHIPS LLP,AG15062016E,250000
DECC,Department of Energy and Climate Change,19/07/2016,CAPITAL GRANTS TO PRIVATE SECTOR - COMPANIES,Energy Transformation,FUTURE ENVIRONMENTAL TECHNOLOGIES-ENGINEERING,SCSOP5/619072016,125658
DECC,Department of Energy and Climate Change,19/07/2016,PURCHASE OF GOODS/SERVICES - OTHER FACILITIES COSTS,Energy Transformation,"DEPARTMENT FOR BUSINESS, INNOVATION & SKILLS",PN18072016A,3882
DECC,Department of Energy and Climate Change,19/07/2016,PURCHASE OF GOODS/SERVICES - ACCOMMODATION & BLDNG MANAGEMENT,Energy Security,UPGRADE OPTIONS LTD,LD13072016E,2854.8
DECC,Department of Energy and Climate Change,20/07/2016,Purchase Of Goods/Services - Other Professional Services,Energy Security,FIVIUM LTD,PN15072016I,29381
DECC,Department of Energy and Climate Change,20/07/2016,PURCHASE OF GOODS/SERVICES - WATER,Energy Security,CLEAR BUSINESS WATER LTD,PN15072016I,863.18
DECC,Department of Energy and Climate Change,20/07/2016,SHORT-TERM CONTRACT & AGENCY STAFF - FULL COST,Energy Transformation,ADECCO UK LTD,PH15072016A,549.99
DECC,Department of Energy and Climate Change,20/07/2016,SHORT-TERM CONTRACT & AGENCY STAFF - FULL COST,Finance & Corporate Services,ADECCO UK LTD,PH15072016A,706.78
DECC,Department of Energy and Climate Change,20/07/2016,PURCHASE OF GOODS/SERVICES - OTHER FACILITIES COSTS  - MEETING ROOM HIRE,Energy Transformation,ONE BIRDCAGE WALK,PN15072016D,781.25
DECC,Department of Energy and Climate Change,20/07/2016,PURCHASE OF GOODS/SERVICES - ICT OUTSOURCING & MAINT/SUPPORT,Energy Security,FIVIUM LTD,PN15072016D,3225
DECC,Department of Energy and Climate Change,20/07/2016,SHORT-TERM CONTRACT & AGENCY STAFF - FULL COST,Energy Transformation,ADECCO UK LTD,PH15072016A,657.72
DECC,Department of Energy and Climate Change,20/07/2016,SHORT-TERM CONTRACT & AGENCY STAFF - FULL COST,Central Budgets,BROOK STREET (UK) LTD,PN15072016D,7773.57
DECC,Department of Energy and Climate Change,20/07/2016,PURCHASE OF GOODS/SERVICES - ICT OUTSOURCING & MAINT/SUPPORT,Energy Security,FIVIUM LTD,PN15072016D,4408.25
DECC,Department of Energy and Climate Change,20/07/2016,PURCHASE OF GOODS/SERVICES - OTHER FACILITIES COSTS,Energy Transformation,ONE BIRDCAGE WALK,PN15072016D,808
DECC,Department of Energy and Climate Change,20/07/2016,PURCHASE OF GOODS/SERVICES - OTHER PROF SERV - OUTSOURCED PROGRAMME MANAGEMENT SERVICES,Energy Transformation,KIWA LTD,PN15072016B,35368
DECC,Department of Energy and Climate Change,20/07/2016,PURCHASE OF GOODS/SERVICES -OTHER PROF SERV - TECHNICAL,Energy Transformation,PA CONSULTING SERVICES LTD,LD15072016,27588
DECC,Department of Energy and Climate Change,20/07/2016,PURCHASE OF GOODS/SERVICES -OTHER PROF SERV - TECHNICAL,Energy Transformation,PA CONSULTING SERVICES LTD,LD15072016,2700
DECC,Department of Energy and Climate Change,20/07/2016,PURCHASE OF GOODS/SERVICES - OTHER TRAVEL,Central Budgets,CLARITY TRAVEL MANAGEMENT,NULL,3401.5
DECC,Department of Energy and Climate Change,20/07/2016,PURCHASE OF GOODS/SERVICES� - RESEARCH & DEVELOPMENT - OTHER OUTSOURCED,Finance & Corporate Services,OFFICE FOR NATIONAL STATISTICS,HC19072016,11375
DECC,Department of Energy and Climate Change,20/07/2016,PURCHASE OF GOODS/SERVICES - PERSONNEL RELATED - MEMBERSHIP OF ORGANISATIONS,Energy Security,REUTERS LTD,PN15072016I,1165
DECC,Department of Energy and Climate Change,20/07/2016,PURCHASE OF GOODS/SERVICES - ICT OUTSOURCING & MAINT/SUPPORT,Energy Security,FIVIUM LTD,PN15072016I,17943
DECC,Department of Energy and Climate Change,20/07/2016,SHORT-TERM CONTRACT & AGENCY STAFF - FULL COST,Finance & Corporate Services,ADECCO UK LTD,PH15072016A,711.72
DECC,Department of Energy and Climate Change,20/07/2016,PURCHASE OF GOODS/SERVICES - OTHER TRAVEL,Central Budgets,CLARITY TRAVEL MANAGEMENT,NULL,12582.18
DECC,Department of Energy and Climate Change,20/07/2016,PURCHASE OF GOODS/SERVICES - OTHER - RESEARCH AND DEVELOPMENT,Finance & Corporate Services,OFFICE FOR NATIONAL STATISTICS,PN05072016I,10149.5
DECC,Department of Energy and Climate Change,20/07/2016,PURCHASE OF GOODS/SERVICES - ICT OUTSOURCING & MAINT/SUPPORT,Energy Security,FIVIUM LTD,PN15072016I,5130
DECC,Department of Energy and Climate Change,20/07/2016,PURCHASE OF GOODS/SERVICES - ICT OUTSOURCING & MAINT/SUPPORT,Energy Security,FIVIUM LTD,PN15072016I,2169
DECC,Department of Energy and Climate Change,20/07/2016,SHORT-TERM CONTRACT & AGENCY STAFF - FULL COST,Energy Security,HAYS SPECIALIST RECRUITMENT LTD,PN15072016I,2925
DECC,Department of Energy and Climate Change,20/07/2016,Purchase Of Goods/Services - Other Professional Services,Energy Security,HAYS SPECIALIST RECRUITMENT LTD,PN15072016I,4987.5
DECC,Department of Energy and Climate Change,20/07/2016,Purchase Of Goods/Services - Other Professional Services,Energy Security,HAYS SPECIALIST RECRUITMENT LTD,PN15072016I,4987.5
DECC,Department of Energy and Climate Change,20/07/2016,PURCHASE OF GOODS/SERVICES - ICT OUTSOURCING & MAINT/SUPPORT,Energy Security,FIVIUM LTD,PN15072016D,3225
DECC,Department of Energy and Climate Change,20/07/2016,SHORT-TERM CONTRACT & AGENCY STAFF - FULL COST,Energy Transformation,ADECCO UK LTD,PH15072016A,734.93
DECC,Department of Energy and Climate Change,20/07/2016,CAPITAL GRANTS TO PRIVATE SECTOR - COMPANIES,Energy Transformation,SALIX FINANCE LTD,NULL,2575000
DECC,Department of Energy and Climate Change,20/07/2016,PURCHASE OF GOODS/SERVICES - OTHER TRAVEL,Central Budgets,CLARITY TRAVEL MANAGEMENT,NULL,140539.6
DECC,Department of Energy and Climate Change,20/07/2016,SHORT-TERM CONTRACT & AGENCY STAFF - FULL COST,Finance & Corporate Services,ADECCO UK LTD,PH15072016A,602.16
DECC,Department of Energy and Climate Change,20/07/2016,PURCHASE OF GOODS/SERVICES - OTHER TRAVEL,Central Budgets,CLARITY TRAVEL MANAGEMENT,NULL,19383.11
DECC,Department of Energy and Climate Change,20/07/2016,PURCHASE OF GOODS/SERVICES - ICT OUTSOURCING & MAINT/SUPPORT,Energy Security,FIVIUM LTD,PN15072016I,11564
DECC,Department of Energy and Climate Change,20/07/2016,PURCHASE OF GOODS/SERVICES - ICT OUTSOURCING & MAINT/SUPPORT,Energy Security,FIVIUM LTD,PN15072016I,16450.83
DECC,Department of Energy and Climate Change,20/07/2016,PURCHASE OF GOODS/SERVICES - ICT OUTSOURCING & MAINT/SUPPORT,Energy Security,FIVIUM LTD,PN15072016I,17943
DECC,Department of Energy and Climate Change,20/07/2016,PURCHASE OF GOODS/SERVICES - OTHER FACILITIES COSTS,Energy Security,CENTRAL HALL WESTMINSTER LTD,SC15072016,823
DECC,Department of Energy and Climate Change,20/07/2016,SHORT-TERM CONTRACT & AGENCY STAFF - FULL COST,Energy Transformation,ADECCO UK LTD,PH15072016A,797.72
DECC,Department of Energy and Climate Change,20/07/2016,PURCHASE OF GOODS/SERVICES - OTHER PROF SERV - OUTSOURCED PROGRAMME MANAGEMENT SERVICES,Energy Transformation,BUILDING RESEARCH ESTABLISHMENT LTD,PN15072016D,6428
DECC,Department of Energy and Climate Change,20/07/2016,PURCHASE OF GOODS/SERVICES -OTHER PROF SERV - TECHNICAL,Energy Transformation,PA CONSULTING SERVICES LTD,LD15072016,30927.75
DECC,Department of Energy and Climate Change,20/07/2016,PURCHASE OF GOODS/SERVICES - OTHER TRAVEL,Central Budgets,CLARITY TRAVEL MANAGEMENT,NULL,778.5
DECC,Department of Energy and Climate Change,20/07/2016,Purchase Of Goods/Services - Other Professional Services,Energy Security,HAYS SPECIALIST RECRUITMENT LTD,PN15072016I,4987.5
DECC,Department of Energy and Climate Change,20/07/2016,SHORT-TERM CONTRACT & AGENCY STAFF - FULL COST,Finance & Corporate Services,ADECCO UK LTD,PH15072016A,691.92
DECC,Department of Energy and Climate Change,20/07/2016,PURCHASE OF GOODS/SERVICES - TRAINING & DEVELOPMENT,Energy Security,PETROFAC FACILITIES MANAGEMENT LTD,PN15072016B,1950
DECC,Department of Energy and Climate Change,20/07/2016,PURCHASE OF GOODS/SERVICES - OTHER - RESEARCH AND DEVELOPMENT,Energy Transformation,NATURAL ENVIRON RESEARCH COUNCIL,DEFRA_GO_LIVE_DEC_AP_INV,237279.06
DECC,Department of Energy and Climate Change,20/07/2016,CAPITAL GRANTS TO PRIVATE SECTOR - COMPANIES,Energy Transformation,HIGH VOLTAGE PARTICAL DISCHARGE LTD,NULL,111039.19
DECC,Department of Energy and Climate Change,21/07/2016,PURCHASE OF GOODS/SERVICES - OTHER ICT COSTS - COMPUTER SOFTWARE,Finance & Corporate Services,TRUSTMARQUE SOLUTIONS LTD,PN08072016J,2364
DECC,Department of Energy and Climate Change,21/07/2016,Purchase Of Goods/Services - Other Professional Services,Energy Security,SPINNAKER ENERGY LTD,PN15072016I,2376.03
DECC,Department of Energy and Climate Change,21/07/2016,Purchase Of Goods/Services - Consultancy,Finance & Corporate Services,KPMG LLP,PN18072016A,562.5
DECC,Department of Energy and Climate Change,21/07/2016,SHORT-TERM CONTRACT & AGENCY STAFF - FULL COST,Energy Transformation,ADECCO UK LTD,PN14062016,868.5
DECC,Department of Energy and Climate Change,21/07/2016,SHORT-TERM CONTRACT & AGENCY STAFF - FULL COST,Central Budgets,BROOK STREET (UK) LTD,PN18072016A,573.09
DECC,Department of Energy and Climate Change,21/07/2016,PURCHASE OF GOODS/SERVICES - OTHER PROF SERV - OUTSOURCED PROGRAMME MANAGEMENT SERVICES,Energy Security,SPINNAKER ENERGY LTD,PN15072016I,10000
DECC,Department of Energy and Climate Change,21/07/2016,PURCHASE OF GOODS/SERVICES - TAXI SERVICES,Strategy,GREEN TOMATO CARS LTD,PN18072016A,1367.75
DECC,Department of Energy and Climate Change,21/07/2016,PURCHASE OF GOODS/SERVICES - TAXI SERVICES,Strategy,GREEN TOMATO CARS LTD,PN18072016A,1176.74
DECC,Department of Energy and Climate Change,21/07/2016,SHORT-TERM CONTRACT & AGENCY STAFF - FULL COST,Energy Transformation,ADECCO UK LTD,PN29062016,868.5
DECC,Department of Energy and Climate Change,21/07/2016,PURCHASE OF GOODS/SERVICES -OTHER PROF SERV - TECHNICAL,Energy Transformation,GOVERNMENT ACTUARY DEPARTMENT,PN20072016C,2130.15
DECC,Department of Energy and Climate Change,21/07/2016,PURCHASE OF GOODS/SERVICES - OTHER PROF SERV - SHARED LEGAL SERVICES,Energy Transformation,GOVERNMENT ACTUARY DEPARTMENT,PN20072016C,7869.85
DECC,Department of Energy and Climate Change,21/07/2016,SHORT-TERM CONTRACT & AGENCY STAFF - FULL COST,Energy Transformation,ADECCO UK LTD,PH220616A,868.5
DECC,Department of Energy and Climate Change,21/07/2016,SHORT-TERM CONTRACT & AGENCY STAFF - FULL COST,Energy Transformation,ADECCO UK LTD,PN29062016C,694.8
DECC,Department of Energy and Climate Change,21/07/2016,PURCHASE OF GOODS/SERVICES - OTHER PROF SERV - OUTSOURCED PROGRAMME MANAGEMENT SERVICES,Energy Security,SPINNAKER ENERGY LTD,PN15072016I,3666.97
DECC,Department of Energy and Climate Change,22/07/2016,Purchase Of Goods/Services - Other Professional Services,Energy Security,MOTT MACDONALD GROUP LTD,PN15062016G,2809.4
DECC,Department of Energy and Climate Change,22/07/2016,SHORT-TERM CONTRACT & AGENCY STAFF - FULL COST,Energy Security,HAYS SPECIALIST RECRUITMENT LTD,AG08072016F,1535.25
DECC,Department of Energy and Climate Change,22/07/2016,SUBSIDIES TO PRIVATE SECTOR - COMPANIES,Energy Security,LONDON SUSTAINABILITY EXCHANGE.,DEFRA_GO_LIVE_DEC_AP_INV,15000
DECC,Department of Energy and Climate Change,22/07/2016,SHORT-TERM CONTRACT & AGENCY STAFF - FULL COST,Energy Security,HAYS SPECIALIST RECRUITMENT LTD,AG06062016B,1535.25
DECC,Department of Energy and Climate Change,22/07/2016,PURCHASE OF GOODS/SERVICES - OTHER PROF SERV - OUTSOURCED PROGRAMME MANAGEMENT SERVICES,Energy Security,NATIONAL NUCLEAR LABORATORY LTD,PN15072016D,123689.37
DECC,Department of Energy and Climate Change,22/07/2016,SHORT-TERM CONTRACT & AGENCY STAFF - FULL COST,Energy Security,HAYS SPECIALIST RECRUITMENT LTD,PN18072016A,1228.2
DECC,Department of Energy and Climate Change,22/07/2016,SHORT-TERM CONTRACT & AGENCY STAFF - FULL COST,Energy Security,HAYS SPECIALIST RECRUITMENT LTD,PN18072016A,1535.25
DECC,Department of Energy and Climate Change,22/07/2016,SHORT-TERM CONTRACT & AGENCY STAFF - FULL COST,Finance & Corporate Services,ADECCO UK LTD,HC19072016,612.87
DECC,Department of Energy and Climate Change,22/07/2016,Purchase Of Goods/Services - Other Professional Services,Energy Security,SENERGY (GB) LTD,PN19072016B,19812.5
DECC,Department of Energy and Climate Change,22/07/2016,SHORT-TERM CONTRACT & AGENCY STAFF - FULL COST,Energy Security,HAYS SPECIALIST RECRUITMENT LTD,AG15062016F,921.15
DECC,Department of Energy and Climate Change,22/07/2016,PURCHASE OF GOODS/SERVICES - OTHER PROF SERV - OUTSOURCED PROGRAMME MANAGEMENT SERVICES,Energy Security,NATIONAL NUCLEAR LABORATORY LTD,PN15072016D,53771.53
DECC,Department of Energy and Climate Change,22/07/2016,PURCHASE OF GOODS/SERVICES� - RESEARCH & DEVELOPMENT - OTHER OUTSOURCED,Energy Transformation,BUILDING RESEARCH ESTABLISHMENT LTD,PN15072016B,72807
DECC,Department of Energy and Climate Change,22/07/2016,SHORT-TERM CONTRACT & AGENCY STAFF - FULL COST,Energy Security,HAYS SPECIALIST RECRUITMENT LTD,HC19072016A,2925
DECC,Department of Energy and Climate Change,22/07/2016,PURCHASE OF GOODS/SERVICES - OTHER PROF SERV - OUTSOURCED PROGRAMME MANAGEMENT SERVICES,Energy Security,SENERGY (GB) LTD,PN19072016B,40057.77
DECC,Department of Energy and Climate Change,22/07/2016,PURCHASE OF GOODS/SERVICES - OTHER PROF SERV - OUTSOURCED PROGRAMME MANAGEMENT SERVICES,Energy Security,MOTT MACDONALD GROUP LTD,PN15062016G,8609
DECC,Department of Energy and Climate Change,22/07/2016,SHORT-TERM CONTRACT & AGENCY STAFF - FULL COST,Energy Transformation,ADECCO UK LTD,HC19072016,782.46
DECC,Department of Energy and Climate Change,22/07/2016,SHORT-TERM CONTRACT & AGENCY STAFF - FULL COST,Energy Transformation,ADECCO UK LTD,HC19072016,731.43
DECC,Department of Energy and Climate Change,22/07/2016,SHORT-TERM CONTRACT & AGENCY STAFF - FULL COST,Energy Security,ADECCO UK LTD,HC19072016,832.68
DECC,Department of Energy and Climate Change,22/07/2016,SHORT-TERM CONTRACT & AGENCY STAFF - FULL COST,Energy Transformation,ADECCO UK LTD,HC19072016,840.84
DECC,Department of Energy and Climate Change,22/07/2016,PURCHASE OF GOODS/SERVICES - OTHER PROF SERV - OUTSOURCED PROGRAMME MANAGEMENT SERVICES,Energy Transformation,CARBON LIMITING TECHNOLOGIES,HC19072016A,14600.17
DECC,Department of Energy and Climate Change,22/07/2016,PURCHASE OF GOODS/SERVICES - OTHER - UK SUBSCRIPTIONS,Energy Security,PRESS DATA LTD,HC19072016A,1350
DECC,Department of Energy and Climate Change,22/07/2016,SHORT-TERM CONTRACT & AGENCY STAFF - FULL COST,Energy Security,HAYS SPECIALIST RECRUITMENT LTD,AG06062016B,614.1
DECC,Department of Energy and Climate Change,22/07/2016,SHORT-TERM CONTRACT & AGENCY STAFF - FULL COST,Energy Security,HAYS SPECIALIST RECRUITMENT LTD,PN18072016A,3058.85
DECC,Department of Energy and Climate Change,22/07/2016,PURCHASE OF GOODS/SERVICES - OTHER PROF SERV - OUTSOURCED PROGRAMME MANAGEMENT SERVICES,Energy Transformation,CARBON LIMITING TECHNOLOGIES,HC19072016A,17723.29
DECC,Department of Energy and Climate Change,22/07/2016,PURCHASE OF GOODS/SERVICES - OTHER PROF SERV - OUTSOURCED PROGRAMME MANAGEMENT SERVICES,Energy Security,GENESIS OIL & GAS CONSULTANTS LTD,PN19072016B,19867.18
DECC,Department of Energy and Climate Change,22/07/2016,SHORT-TERM CONTRACT & AGENCY STAFF - FULL COST,Energy Security,HAYS SPECIALIST RECRUITMENT LTD,PN17062016B,1535.25
DECC,Department of Energy and Climate Change,22/07/2016,SHORT-TERM CONTRACT & AGENCY STAFF - FULL COST,Finance & Corporate Services,ADECCO UK LTD,HC19072016,711.72
DECC,Department of Energy and Climate Change,22/07/2016,SHORT-TERM CONTRACT & AGENCY STAFF - FULL COST,Energy Security,HAYS SPECIALIST RECRUITMENT LTD,HC19072016A,2385.15
DECC,Department of Energy and Climate Change,22/07/2016,PURCHASE OF GOODS/SERVICES - OTHER - UK SUBSCRIPTIONS,Energy Security,PRESS DATA LTD,HC19072016A,650
DECC,Department of Energy and Climate Change,22/07/2016,SHORT-TERM CONTRACT & AGENCY STAFF - FULL COST,Energy Security,HAYS SPECIALIST RECRUITMENT LTD,HC19072016A,2925
DECC,Department of Energy and Climate Change,22/07/2016,PURCHASE OF GOODS/SERVICES - OTHER FACILITIES COSTS - CONFERENCE FACILITIES,Energy Transformation,CLIO ENTERPRISES LTD,PN19072016B,2145
DECC,Department of Energy and Climate Change,22/07/2016,SHORT-TERM CONTRACT & AGENCY STAFF - FULL COST,Energy Security,HAYS SPECIALIST RECRUITMENT LTD,JW250616E,1535.25
DECC,Department of Energy and Climate Change,22/07/2016,SHORT-TERM CONTRACT & AGENCY STAFF - FULL COST,Energy Security,HAYS SPECIALIST RECRUITMENT LTD,JW250616E,1535.25
DECC,Department of Energy and Climate Change,22/07/2016,Purchase Of Goods/Services - Other Professional Services,Energy Security,HAYS SPECIALIST RECRUITMENT LTD,HC19072016A,1705.72
DECC,Department of Energy and Climate Change,22/07/2016,SHORT-TERM CONTRACT & AGENCY STAFF - FULL COST,Energy Security,HAYS SPECIALIST RECRUITMENT LTD,AG08072016F,1535.25
DECC,Department of Energy and Climate Change,22/07/2016,SHORT-TERM CONTRACT & AGENCY STAFF - FULL COST,Energy Security,HAYS SPECIALIST RECRUITMENT LTD,LD04072016,1535.25
DECC,Department of Energy and Climate Change,22/07/2016,SHORT-TERM CONTRACT & AGENCY STAFF - FULL COST,Finance & Corporate Services,ADECCO UK LTD,HC19072016,868.5
DECC,Department of Energy and Climate Change,22/07/2016,PURCHASE OF GOODS/SERVICES - OTHER PROF SERV - OUTSOURCED PROGRAMME MANAGEMENT SERVICES,Energy Security,HAYS SPECIALIST RECRUITMENT LTD,HC19072016A,7354.02
DECC,Department of Energy and Climate Change,22/07/2016,PURCHASE OF GOODS/SERVICES - OTHER - UK SUBSCRIPTIONS,Energy Security,PRESS DATA LTD,HC19072016A,700
DECC,Department of Energy and Climate Change,22/07/2016,SUBSIDIES TO PRIVATE SECTOR - COMPANIES,Energy Security,LONDON SUSTAINABILITY EXCHANGE.,DEFRA_GO_LIVE_DEC_AP_INV,3000
DECC,Department of Energy and Climate Change,22/07/2016,Purchase Of Goods/Services - Contractors,Central Budgets,CAPITA BUSINESS SERVICES LTD,PN15072016B,60287
DECC,Department of Energy and Climate Change,22/07/2016,GRANT-IN-AID TO ARMS LENGTH BODIES,Strategy,COMMITTEE ON CLIMATE CHANGE,SCSOP5/622082016,363826
DECC,Department of Energy and Climate Change,22/07/2016,SHORT-TERM CONTRACT & AGENCY STAFF - FULL COST,Energy Security,HAYS SPECIALIST RECRUITMENT LTD,AG04072016B,1535.25
DECC,Department of Energy and Climate Change,22/07/2016,SHORT-TERM CONTRACT & AGENCY STAFF - FULL COST,Energy Security,HAYS SPECIALIST RECRUITMENT LTD,PN04072016C,1535.25
DECC,Department of Energy and Climate Change,22/07/2016,PURCHASE OF GOODS/SERVICES - OTHER PROF SERV - OUTSOURCED PROGRAMME MANAGEMENT SERVICES,Energy Transformation,CARBON LIMITING TECHNOLOGIES,HC19072016A,12424.38
DECC,Department of Energy and Climate Change,22/07/2016,SHORT-TERM CONTRACT & AGENCY STAFF - FULL COST,Energy Security,HAYS SPECIALIST RECRUITMENT LTD,HC19072016A,1907.5
DECC,Department of Energy and Climate Change,22/07/2016,PURCHASE OF GOODS/SERVICES - OTHER PROF SERV - OUTSOURCED PROGRAMME MANAGEMENT SERVICES,Energy Transformation,BLACK & VEATCH LTD,PN19072016B,14587.4
DECC,Department of Energy and Climate Change,25/07/2016,SHORT-TERM CONTRACT & AGENCY STAFF - FULL COST,Energy Transformation,ADECCO UK LTD,PN29062016C,601.38
DECC,Department of Energy and Climate Change,25/07/2016,PURCHASE OF GOODS/SERVICES� - RESEARCH & DEVELOPMENT - OTHER OUTSOURCED,Energy Transformation,CONSTRUCTION SKILLS LTD (CITB),PN20072016C,2700
DECC,Department of Energy and Climate Change,25/07/2016,PURCHASE OF GOODS/SERVICES - OTHER PROF SERV - OUTSOURCED PROGRAMME MANAGEMENT SERVICES,Energy Transformation,CARBON LIMITING TECHNOLOGIES,PN20072016C,39001.04
DECC,Department of Energy and Climate Change,25/07/2016,PURCHASE OF GOODS/SERVICES - OTHER - RESEARCH AND DEVELOPMENT,Energy Security,T N S UK LTD,JW11062016A,18312
DECC,Department of Energy and Climate Change,25/07/2016,SHORT-TERM CONTRACT & AGENCY STAFF - FULL COST,Energy Transformation,ADECCO UK LTD,PH15072016A,809.55
DECC,Department of Energy and Climate Change,25/07/2016,SHORT-TERM CONTRACT & AGENCY STAFF - FULL COST,Finance & Corporate Services,BADENOCH & CLARK LTD,PN20072016C,2926
DECC,Department of Energy and Climate Change,25/07/2016,Purchase Of Goods/Services - Other Professional Services,Finance & Corporate Services,ARGUS MEDIA LTD,PN20072016H,15000
DECC,Department of Energy and Climate Change,25/07/2016,SHORT-TERM CONTRACT & AGENCY STAFF - FULL COST,Energy Transformation,ADECCO UK LTD,HC19072016,815.33
DECC,Department of Energy and Climate Change,25/07/2016,PURCHASE OF GOODS/SERVICES - TRAINING & DEVELOPMENT,Energy Security,EEEGR EAST OF ENGLAND GROUP,PN20072016C,1480
DECC,Department of Energy and Climate Change,25/07/2016,CAPITAL GRANTS TO PRIVATE SECTOR - COMPANIES,Energy Transformation,SASIE LTD.,PN20072016C,25288
DECC,Department of Energy and Climate Change,25/07/2016,SHORT-TERM CONTRACT & AGENCY STAFF - FULL COST,Finance & Corporate Services,BADENOCH & CLARK LTD,PN20072016C,1596
DECC,Department of Energy and Climate Change,25/07/2016,SHORT-TERM CONTRACT & AGENCY STAFF - FULL COST,Energy Security,HAYS SPECIALIST RECRUITMENT LTD,PN20072016C,619.61
DECC,Department of Energy and Climate Change,25/07/2016,SHORT-TERM CONTRACT & AGENCY STAFF - FULL COST,Energy Security,HAYS SPECIALIST RECRUITMENT LTD,PN20072016H,1907.5
DECC,Department of Energy and Climate Change,25/07/2016,SHORT-TERM CONTRACT & AGENCY STAFF - FULL COST,Energy Transformation,ADECCO UK LTD,HC19072016,1248.6
DECC,Department of Energy and Climate Change,25/07/2016,SHORT-TERM CONTRACT & AGENCY STAFF - FULL COST,Energy Transformation,ADECCO UK LTD,LD06072016C,832.68
DECC,Department of Energy and Climate Change,25/07/2016,PURCHASE OF GOODS/SERVICES - OTHER TRAVEL,Finance & Corporate Services,MARSH LTD,AG20072016,7665
DECC,Department of Energy and Climate Change,25/07/2016,SHORT-TERM CONTRACT & AGENCY STAFF - FULL COST,Energy Security,HAYS SPECIALIST RECRUITMENT LTD,PN20072016C,2861.25
DECC,Department of Energy and Climate Change,25/07/2016,PURCHASE OF GOODS/SERVICES - OTHER PROF SERV - OUTSOURCED PROGRAMME MANAGEMENT SERVICES,Energy Transformation,CARBON LIMITING TECHNOLOGIES,PN20072016C,35001.32
DECC,Department of Energy and Climate Change,25/07/2016,SHORT-TERM CONTRACT & AGENCY STAFF - FULL COST,Central Budgets,BROOK STREET (UK) LTD,PN20072016C,761.09
DECC,Department of Energy and Climate Change,25/07/2016,PURCHASE OF GOODS/SERVICES - OTHER PROF SERV - OUTSOURCED PROGRAMME MANAGEMENT SERVICES,Energy Transformation,CARBON LIMITING TECHNOLOGIES,PN20072016C,30556.25
DECC,Department of Energy and Climate Change,25/07/2016,SHORT-TERM CONTRACT & AGENCY STAFF - FULL COST,Energy Security,HAYS SPECIALIST RECRUITMENT LTD,HC19072016A,3193.02
DECC,Department of Energy and Climate Change,25/07/2016,SHORT-TERM CONTRACT & AGENCY STAFF - FULL COST,Energy Transformation,ADECCO UK LTD,PN29062016,832.68
DECC,Department of Energy and Climate Change,25/07/2016,PURCHASE OF GOODS/SERVICES - PERSONNEL RELATED,Finance & Corporate Services,BADENOCH & CLARK LTD,PN20072016C,2180
DECC,Department of Energy and Climate Change,25/07/2016,PURCHASE OF GOODS/SERVICES - OTHER - RESEARCH AND DEVELOPMENT,Energy Transformation,EWI ENERGY RESEARCH AND SCENARIOS GGMBH,CGSOP5/625072016,28392
DECC,Department of Energy and Climate Change,25/07/2016,PURCHASE OF GOODS/SERVICES - OTHER FACILITIES COSTS  - MEETING ROOM HIRE,Energy Transformation,E E F LTD,PN20072016C,962.4
DECC,Department of Energy and Climate Change,25/07/2016,SHORT-TERM CONTRACT & AGENCY STAFF - FULL COST,Central Budgets,BROOK STREET (UK) LTD,PN20072016C,650.46
DECC,Department of Energy and Climate Change,25/07/2016,PURCHASE OF GOODS/SERVICES - OTHER PROF SERV - OUTSOURCED PROGRAMME MANAGEMENT SERVICES,Energy Transformation,CARBON LIMITING TECHNOLOGIES,PN20072016C,12446.56
DECC,Department of Energy and Climate Change,25/07/2016,PURCHASE OF GOODS/SERVICES� - RESEARCH & DEVELOPMENT - OTHER OUTSOURCED,Finance & Corporate Services,MICROSOFT IRELAND OPERATIONS LTD,PN20072016H,1073.25
DECC,Department of Energy and Climate Change,25/07/2016,PURCHASE OF GOODS/SERVICES - PERSONNEL RELATED - RECRUITMENT ADVERTISING,Energy Transformation,HAYS SPECIALIST RECRUITMENT LTD,PN20072016H,11416
DECC,Department of Energy and Climate Change,25/07/2016,PURCHASE OF GOODS/SERVICES - PERSONNEL RELATED,Finance & Corporate Services,BADENOCH & CLARK LTD,PN20072016C,2452.5
DECC,Department of Energy and Climate Change,25/07/2016,PURCHASE OF GOODS/SERVICES - OTHER PROF SERV - OUTSOURCED PROGRAMME MANAGEMENT SERVICES,Energy Transformation,CARBON LIMITING TECHNOLOGIES,PN20072016C,31518.33
DECC,Department of Energy and Climate Change,25/07/2016,Purchase Of Goods/Services - Other Professional Services,Energy Security,PALANTIR UK LTD,HC20072016A,57650
DECC,Department of Energy and Climate Change,26/07/2016,Purchase Of Goods/Services - Other Professional Services,Energy Transformation,FOREIGN & COMMONWEALTH OFFICE,PN25072016EMAIL,11546.58
DECC,Department of Energy and Climate Change,26/07/2016,PURCHASE OF GOODS/SERVICES - PERSONNEL RELATED,Finance & Corporate Services,BADENOCH & CLARK LTD,AG20072016,1635
DECC,Department of Energy and Climate Change,26/07/2016,SHORT-TERM CONTRACT & AGENCY STAFF - FULL COST,Central Budgets,BROOK STREET (UK) LTD,SC26062016A,6778.13
DECC,Department of Energy and Climate Change,26/07/2016,PURCHASE OF GOODS/SERVICES� - RESEARCH & DEVELOPMENT - OTHER OUTSOURCED,Energy Transformation,AVRILBLAMEY & ASSOCIATES,JP21072016A,5156.27
DECC,Department of Energy and Climate Change,26/07/2016,PURCHASE OF GOODS/SERVICES� - RESEARCH & DEVELOPMENT - OTHER OUTSOURCED,Energy Transformation,UNIVERSITY COLLEGE LONDON,JP21072016A,7000
DECC,Department of Energy and Climate Change,26/07/2016,PURCHASE OF GOODS/SERVICES - OTHER FACILITIES COSTS  - MEETING ROOM HIRE,Energy Transformation,GUOMAN CHARING CROSS,JP21072016A,2781.67
DECC,Department of Energy and Climate Change,26/07/2016,PURCHASE OF GOODS/SERVICES - CATERING & HOSPITALITY,Energy Transformation,FOREIGN & COMMONWEALTH OFFICE,PN25072016EMAIL,1160.14
DECC,Department of Energy and Climate Change,26/07/2016,PURCHASE OF GOODS/SERVICES - PERSONNEL RELATED,Finance & Corporate Services,BADENOCH & CLARK LTD,AG20072016,2180
DECC,Department of Energy and Climate Change,26/07/2016,PURCHASE OF GOODS/SERVICES - OTHER PROF SERV - OUTSOURCED PROGRAMME MANAGEMENT SERVICES,Energy Transformation,THE NATIONAL NON-FOOD CROPS CENTRE,HC19072016,1165
DECC,Department of Energy and Climate Change,26/07/2016,SHORT-TERM CONTRACT & AGENCY STAFF - FULL COST,Energy Transformation,ADECCO UK LTD,AG13062016C,832.68
DECC,Department of Energy and Climate Change,26/07/2016,PURCHASE OF GOODS/SERVICES - PERSONNEL RELATED,Finance & Corporate Services,BADENOCH & CLARK LTD,AG20072016,1635
DECC,Department of Energy and Climate Change,26/07/2016,PURCHASE OF GOODS/SERVICES - TRAINING & DEVELOPMENT,Finance & Corporate Services,VODAFONE LTD,SC21072016IMAGESATTACHED,2200
DECC,Department of Energy and Climate Change,26/07/2016,PURCHASE OF GOODS/SERVICES - PERSONNEL RELATED,Finance & Corporate Services,BADENOCH & CLARK LTD,AG20072016,1635
DECC,Department of Energy and Climate Change,26/07/2016,SHORT-TERM CONTRACT & AGENCY STAFF - FULL COST,Energy Security,ALLEN LANE LTD,JP21072016A,4047.23
DECC,Department of Energy and Climate Change,26/07/2016,PURCHASE OF GOODS/SERVICES - ACCOMMODATION & BLDNG MANAGEMENT,Finance & Corporate Services,SHRED-IT LTD,LD07072016B,1500
DECC,Department of Energy and Climate Change,26/07/2016,PURCHASE OF GOODS/SERVICES� - RESEARCH & DEVELOPMENT - OTHER OUTSOURCED,Energy Transformation,AVRILBLAMEY & ASSOCIATES,JP21072016A,11196.84
DECC,Department of Energy and Climate Change,27/07/2016,PURCHASE OF GOODS/SERVICES - OTHER PROF SERV - OUTSOURCED PROGRAMME MANAGEMENT SERVICES,Energy Transformation,ENERGY SAVING TRUST LTD,PN05072016D,195454.13
DECC,Department of Energy and Climate Change,27/07/2016,PURCHASE OF GOODS/SERVICES - PERSONNEL RELATED - MEMBERSHIP OF ORGANISATIONS,Energy Security,TUV SUD NEL LTD,HC20072016A,1800
DECC,Department of Energy and Climate Change,27/07/2016,PURCHASE OF GOODS/SERV-ICT OUTSOURC&MAINT/SUPP- DESKTOP SERVICES,Finance & Corporate Services,FCO SERVICES,LD26072016,40981.25
DECC,Department of Energy and Climate Change,27/07/2016,SHORT-TERM CONTRACT & AGENCY STAFF - FULL COST,Finance & Corporate Services,ADECCO UK LTD,HC19072016,691.92
DECC,Department of Energy and Climate Change,27/07/2016,PURCHASE OF GOODS/SERV-ICT OUTSOURC&MAINT/SUPP- DESKTOP SERVICES,Finance & Corporate Services,FCO SERVICES,LD26072016,5187.5
DECC,Department of Energy and Climate Change,27/07/2016,SHORT-TERM CONTRACT & AGENCY STAFF - FULL COST,Finance & Corporate Services,BADENOCH & CLARK LTD,AG20072016,2128
DECC,Department of Energy and Climate Change,27/07/2016,PURCHASE OF GOODS/SERV-ICT OUTSOURC&MAINT/SUPP- DESKTOP SERVICES,Finance & Corporate Services,FCO SERVICES,LD26072016,1788.5
DECC,Department of Energy and Climate Change,27/07/2016,PURCHASE OF GOODS/SERVICES - OTHER FACILITIES COSTS,Finance & Corporate Services,DEPARTMENT FOR EDUCATION,LD26072016,137362.5
DECC,Department of Energy and Climate Change,27/07/2016,PURCHASE OF GOODS/SERVICES - OTHER PROF SERV - OUTSOURCED PROGRAMME MANAGEMENT SERVICES,Energy Transformation,LANDMARK INFORMATION GROUP LTD,JP21072016A,80213
DECC,Department of Energy and Climate Change,27/07/2016,PURCHASE OF GOODS/SERVICES - OTHER PROFESSIONAL SERVICES - TRANSLATIONS,Energy Transformation,FCO SERVICES,PN25072016EMAIL,25954.21
DECC,Department of Energy and Climate Change,27/07/2016,PURCHASE OF GOODS/SERVICES - OFFICE RELATED,Energy Security,UPGRADE OPTIONS LTD,PN20072016H,1043
DECC,Department of Energy and Climate Change,28/07/2016,SHORT-TERM CONTRACT & AGENCY STAFF - FULL COST,Central Budgets,BROOK STREET (UK) LTD,DEFRA_GO_LIVE_DEC_AP_INV,542.35
DECC,Department of Energy and Climate Change,28/07/2016,SHORT-TERM CONTRACT & AGENCY STAFF - FULL COST,Central Budgets,BROOK STREET (UK) LTD,DEFRA_GO_LIVE_DEC_AP_INV,767.2
DECC,Department of Energy and Climate Change,28/07/2016,SHORT-TERM CONTRACT & AGENCY STAFF - FULL COST,Central Budgets,BROOK STREET (UK) LTD,JP25072016D,634.16
DECC,Department of Energy and Climate Change,28/07/2016,SHORT-TERM CONTRACT & AGENCY STAFF - FULL COST,Central Budgets,BROOK STREET (UK) LTD,JP25072016D,699.92
DECC,Department of Energy and Climate Change,28/07/2016,SHORT-TERM CONTRACT & AGENCY STAFF - FULL COST,Energy Security,HAYS SPECIALIST RECRUITMENT LTD,JP25072016D,921.15
DECC,Department of Energy and Climate Change,28/07/2016,SHORT-TERM CONTRACT & AGENCY STAFF - FULL COST,Energy Security,HAYS SPECIALIST RECRUITMENT LTD,LD25072016EMAIL,2340
DECC,Department of Energy and Climate Change,28/07/2016,SHORT-TERM CONTRACT & AGENCY STAFF - FULL COST,Finance & Corporate Services,ADECCO UK LTD,DEFRA_GO_LIVE_DEC_AP_INV,711.72
DECC,Department of Energy and Climate Change,28/07/2016,SHORT-TERM CONTRACT & AGENCY STAFF - FULL COST,Finance & Corporate Services,ADECCO UK LTD,SC01062016A,711.72
DECC,Department of Energy and Climate Change,28/07/2016,SHORT-TERM CONTRACT & AGENCY STAFF - FULL COST,Finance & Corporate Services,ADECCO UK LTD,PN29062016C,612.87
DECC,Department of Energy and Climate Change,28/07/2016,PURCHASE OF GOODS/SERVICES -OTHER PROFESSIONAL SERVICES - LEGAL,Energy Transformation,GOWLING WLG (UK) LLP,LD13072016E,14590.8
DECC,Department of Energy and Climate Change,28/07/2016,SUBSIDIES TO PRIVATE SECTOR - COMPANIES,Energy Security,CITIZENS ADVICE IN NORTH & WEST KENT,SC28062016,3000
DECC,Department of Energy and Climate Change,28/07/2016,SHORT-TERM CONTRACT & AGENCY STAFF - FULL COST,Central Budgets,BROOK STREET (UK) LTD,JP25072016D,704.62
DECC,Department of Energy and Climate Change,28/07/2016,SHORT-TERM CONTRACT & AGENCY STAFF - FULL COST,Central Budgets,BROOK STREET (UK) LTD,JP25072016D,704.62
DECC,Department of Energy and Climate Change,28/07/2016,PURCHASE OF GOODS/SERVICES - OTHER PROF SERV - OUTSOURCED PROGRAMME MANAGEMENT SERVICES,Energy Security,GENESIS OIL & GAS CONSULTANTS LTD,JP25072016D,19011.28
DECC,Department of Energy and Climate Change,28/07/2016,SHORT-TERM CONTRACT & AGENCY STAFF - FULL COST,Finance & Corporate Services,ADECCO UK LTD,AG13062016C,711.72
DECC,Department of Energy and Climate Change,28/07/2016,SHORT-TERM CONTRACT & AGENCY STAFF - FULL COST,Central Budgets,BROOK STREET (UK) LTD,AG25072016B,10691.94
DECC,Department of Energy and Climate Change,28/07/2016,PURCHASE OF GOODS/SERVICES� - RESEARCH & DEVELOPMENT - OTHER OUTSOURCED,Finance & Corporate Services,CENTRE FOR SUSTAINABLE ENERGY,AG25072016B,7867.6
DECC,Department of Energy and Climate Change,28/07/2016,SHORT-TERM CONTRACT & AGENCY STAFF - FULL COST,Finance & Corporate Services,ADECCO UK LTD,PN06072016E,711.72
DECC,Department of Energy and Climate Change,28/07/2016,SHORT-TERM CONTRACT & AGENCY STAFF - FULL COST,Central Budgets,BROOK STREET (UK) LTD,DEFRA_GO_LIVE_DEC_AP_INV,570.21
DECC,Department of Energy and Climate Change,28/07/2016,SHORT-TERM CONTRACT & AGENCY STAFF - FULL COST,Central Budgets,BROOK STREET (UK) LTD,DEFRA_GO_LIVE_DEC_AP_INV,598.12
DECC,Department of Energy and Climate Change,28/07/2016,SHORT-TERM CONTRACT & AGENCY STAFF - FULL COST,Central Budgets,BROOK STREET (UK) LTD,SC01062016C,562.56
DECC,Department of Energy and Climate Change,28/07/2016,PURCHASE OF GOODS/SERVICES - PERSONNEL RELATED,Energy Security,DSTL,SC25072016,21852.57
DECC,Department of Energy and Climate Change,28/07/2016,SHORT-TERM CONTRACT & AGENCY STAFF - FULL COST,Central Budgets,BROOK STREET (UK) LTD,DEFRA_GO_LIVE_DEC_AP_INV,703.2
DECC,Department of Energy and Climate Change,28/07/2016,PURCHASE OF GOODS/SERVICES - OTHER - RESEARCH AND DEVELOPMENT,Energy Transformation,GFK UK LTD,PN21072016C,28710
DECC,Department of Energy and Climate Change,28/07/2016,PURCHASE OF GOODS/SERVICES - ACCOMMODATION &BLDNG MNGMT- RENT TO LANDLORDS,Finance & Corporate Services,CAPITA PROPERTY & INFRASTRUCTURE LTD,AG25072016B,19186.53
DECC,Department of Energy and Climate Change,28/07/2016,SHORT-TERM CONTRACT & AGENCY STAFF - FULL COST,Finance & Corporate Services,ADECCO UK LTD,DEFRA_GO_LIVE_DEC_AP_INV,711.72
DECC,Department of Energy and Climate Change,28/07/2016,SHORT-TERM CONTRACT & AGENCY STAFF - FULL COST,Finance & Corporate Services,ADECCO UK LTD,PH220616A,711.72
DECC,Department of Energy and Climate Change,28/07/2016,PURCHASE OF GOODS/SERVICES - TRAINING & DEVELOPMENT,Energy Security,NORWICH FOOTBALL CLUB,AG25072016B,655
DECC,Department of Energy and Climate Change,28/07/2016,SHORT-TERM CONTRACT & AGENCY STAFF - FULL COST,Central Budgets,BROOK STREET (UK) LTD,DEFRA_GO_LIVE_DEC_AP_INV,694.41
DECC,Department of Energy and Climate Change,28/07/2016,SHORT-TERM CONTRACT & AGENCY STAFF - FULL COST,Central Budgets,BROOK STREET (UK) LTD,DEFRA_GO_LIVE_DEC_AP_INV,767.2
DECC,Department of Energy and Climate Change,28/07/2016,SHORT-TERM CONTRACT & AGENCY STAFF - FULL COST,Central Budgets,BROOK STREET (UK) LTD,PH310516D,562.56
DECC,Department of Energy and Climate Change,28/07/2016,SHORT-TERM CONTRACT & AGENCY STAFF - FULL COST,Central Budgets,BROOK STREET (UK) LTD,JP25072016D,685.83
DECC,Department of Energy and Climate Change,28/07/2016,SHORT-TERM CONTRACT & AGENCY STAFF - FULL COST,Central Budgets,BROOK STREET (UK) LTD,JP25072016D,709.32
DECC,Department of Energy and Climate Change,28/07/2016,SHORT-TERM CONTRACT & AGENCY STAFF - FULL COST,Finance & Corporate Services,ADECCO UK LTD,AG27052016B,632.64
DECC,Department of Energy and Climate Change,28/07/2016,SHORT-TERM CONTRACT & AGENCY STAFF - FULL COST,Energy Security,HAYS SPECIALIST RECRUITMENT LTD,LD25072016EMAIL,1431.09
DECC,Department of Energy and Climate Change,28/07/2016,SHORT-TERM CONTRACT & AGENCY STAFF - FULL COST,Central Budgets,BROOK STREET (UK) LTD,SC01062016C,657.33
DECC,Department of Energy and Climate Change,28/07/2016,PURCHASE OF GOODS/SERVICES - ACCOMMODATION &BLDNG MNGMT- RENT TO LANDLORDS,Finance & Corporate Services,CAPITA PROPERTY & INFRASTRUCTURE LTD,AG25072016B,19186.53
DECC,Department of Energy and Climate Change,28/07/2016,SHORT-TERM CONTRACT & AGENCY STAFF - FULL COST,Central Budgets,BROOK STREET (UK) LTD,JP25072016D,704.62
DECC,Department of Energy and Climate Change,28/07/2016,SHORT-TERM CONTRACT & AGENCY STAFF - FULL COST,Central Budgets,BROOK STREET (UK) LTD,JP25072016D,699.92
DECC,Department of Energy and Climate Change,28/07/2016,PURCHASE OF GOODS/SERVICES - OTHER - RESEARCH AND DEVELOPMENT,Energy Security,POYRY MANAGEMENT CONSULTING (UK) LTD,PN25072016EMAIL,9720
DECC,Department of Energy and Climate Change,28/07/2016,SHORT-TERM CONTRACT & AGENCY STAFF - FULL COST,Finance & Corporate Services,ADECCO UK LTD,HC19072016,578.27
DECC,Department of Energy and Climate Change,28/07/2016,PURCHASE OF GOODS/SERVICES - ACCOMMODATION & BLDNG MANAGEMENT,Energy Security,COLLIERS INTERNATIONAL BUILDING CONSULTANCY UK LLP,SC25072016,24221.5
DECC,Department of Energy and Climate Change,29/07/2016,PURCHASE OF GOODS/SERVICES - TAXI SERVICES,Strategy,GREEN TOMATO CARS LTD,PN26072016EMAIL,1257.47
DECC,Department of Energy and Climate Change,29/07/2016,SUBSIDIES TO PRIVATE SECTOR - COMPANIES,Energy Transformation,GNERGY LTD,PN26072016EMAIL,580
DECC,Department of Energy and Climate Change,29/07/2016,SUBSIDIES TO PRIVATE SECTOR - COMPANIES,Energy Transformation,G B ENERGY SUPPLY LTD,PN26072016EMAIL,89598
DECC,Department of Energy and Climate Change,29/07/2016,SUBSIDIES TO PRIVATE SECTOR - COMPANIES,Energy Security,CAPTURE POWER LTD,LD25072016EMAIL,1071948.82
DECC,Department of Energy and Climate Change,29/07/2016,SUBSIDIES TO PRIVATE SECTOR - COMPANIES,Energy Transformation,GNERGY LTD,PN26072016EMAIL,10308
DECC,Department of Energy and Climate Change,29/07/2016,PURCHASE OF GOODS/SERVICES - TRAINING & DEVELOPMENT,Energy Transformation,CARDIFF UNIVERSITY,JP25072016D,40445
DECC,Department of Energy and Climate Change,29/07/2016,PURCHASE OF GOODS/SERVICES - ACCOMMODATION &BLDNG MNGMT- RENT TO LANDLORDS,Finance & Corporate Services,CAPITA PROPERTY & INFRASTRUCTURE LTD,AG25072016B,157658.67
DECC,Department of Energy and Climate Change,29/07/2016,CAPITAL GRANTS TO PRIVATE SECTOR - COMPANIES,Energy Security,ELEXON LTD,JP21072016A,134565.87
DECC,Department of Energy and Climate Change,29/07/2016,SHORT-TERM CONTRACT & AGENCY STAFF - FULL COST,Energy Transformation,ADECCO UK LTD,PN26072016EMAIL,775.7
DECC,Department of Energy and Climate Change,29/07/2016,SUBSIDIES TO PRIVATE SECTOR - COMPANIES,Energy Security,CAPTURE POWER LTD,LD25072016EMAIL,178125.53
DECC,Department of Energy and Climate Change,29/07/2016,PURCHASE OF GOODS/SERVICES� - RESEARCH & DEVELOPMENT - OTHER OUTSOURCED,Energy Transformation,MICROWIRE LTD,JP21072016A,7182.08
DECC,Department of Energy and Climate Change,29/07/2016,SUBSIDIES TO PRIVATE SECTOR - COMPANIES,Energy Transformation,RENEWABLE ENERGY COMPANY,PN26072016EMAIL,77268
DECC,Department of Energy and Climate Change,29/07/2016,CURRENT GRANTS TO OVERSEAS BODIES - INTERNATIONAL SUBSCRIPTIONS,Energy Transformation,IEA-RETD,SC29082016EMAIL,66874.54
DECC,Department of Energy and Climate Change,29/07/2016,PURCHASE OF GOODS/SERVICES - OTHER PROF SERV - OUTSOURCED PROGRAMME MANAGEMENT SERVICES,Energy Security,PALANTIR UK LTD,JP26072016C,20000
DECC,Department of Energy and Climate Change,29/07/2016,SHORT-TERM CONTRACT & AGENCY STAFF - FULL COST,Energy Security,MICHAEL PAGE INTERNATIONAL RECRUITMENT LTD,PN26072016EMAIL,4374.55
DECC,Department of Energy and Climate Change,29/07/2016,CAPITAL GRANTS TO PRIVATE SECTOR - COMPANIES,Energy Security,ELEXON LTD,JP21072016A,2465.01
DECC,Department of Energy and Climate Change,29/07/2016,SUBSIDIES TO PRIVATE SECTOR - COMPANIES,Energy Transformation,HUDSON ENERGY SUPPLY UK LIMITED,PN26072016EMAIL,102408
